{"text_format":"3","workbook":"xlsx","n_sheets":3,"sheets":["Leitplandaten","Agiler Leitplan","Info"],"not_rendered":{"defined_names":5},"read":"whole","date_system":"1900"}

{"sheet":"Leitplandaten","index":0,"n_rows":13,"n_cols":7,"rows_kept":13,"merged":[[12,1,12,4]]}
["Erstellen Sie einen agiler Leitplan, indem Sie wichtige Meilensteine oder Aktivitäten in der Tabelle \"Leitplandaten\" auf diesem Arbeitsblatt eingeben.\nDer Titel dieses Arbeitsblatts befindet sich in Zelle B1. \nInformationen zur Verwendung dieses Arbeitsblatts, einschließlich Anweisungen für die Sprachausgabe, finden Sie auf dem Arbeitsblatt \"Info\".\nNavigieren Sie weiterhin in Spalte A abwärts, um weitere Anweisungen anzuzeigen.","Daten für agile Zeitachsen"]
["Die Tabellenüberschriften befinden sich in den Zellen B2 bis E2. Verwenden Sie Überschriftsfilter, um die Tabelle zu sortieren und bestimmte Elemente zu finden.\nDer agiler Leitplan funktioniert am besten, wenn die Tabelle nach der Priorität in aufsteigender Reihenfolge sortiert ist, gefolgt von Meilenstein oder Aktivität.\nDie Beispieldaten befinden sich in der Tabelle \"Leitplandaten\" von Zelle B3 bis E12. \nWenn ein Meilenstein oder eine Aktivität abgeschlossen ist, aktualisieren Sie das entsprechende Ergebnisfeld, um die Ergebnisse auf dem Arbeitsblatt \"Agiler Leitplan\" anzuzeigen. Geben Sie \"Keine Änderung\" ein, um Meilensteine ohne Auswirkungen hervorzuheben.\nFahren Sie mit Zelle A13 fort, um die nächste Anweisung zu erhalten.\n","Ziel","Meilenstein oder Aktivität","Priorität","Ergebnis",null,"<-- Tabelle nach Priorität und Meilenstein oder Aktivität in aufsteigender Reihenfolge sortieren"]
[null,"Aktuell","Aktivität 1\nPrototyp erstellen","1 – Hoch",null,null,"<-- Ein Ergebnis für jeden abgeschlossenen Meilenstein hinzufügen. Geben Sie \"Keine Änderung\" ein, um Meilensteine ohne Auswirkungen hervorzuheben."]
[null,"Kurzfristig","Aktivität 2\nPrototyp vorführen","1 – Hoch"]
[null,"Aktuell","Aktivität 6","1 – Hoch"]
[null,"Zukunft","Aktivität 7\nEntwicklung der Implementierung von Phase eins auslagern","1 – Hoch"]
[null,"Abgeschlossen","Aktivität 9\nPhase 1 genehmigt","1 – Hoch","Um 10 % verkleinern"]
[null,"Zukunft","Aktivität 10","2 – Mittel"]
[null,"Kurzfristig","Aktivität 8","2 – Mittel"]
[null,"Abgeschlossen","Aktivität 3","3 – Gering","Keine Änderung"]
[null,"Zukunft","Aktivität 4","3 – Gering"]
[null,"Aktuell","Aktivität 5","3 – Gering"]
["Fügen Sie neue Elemente hinzu, indem Sie oberhalb dieser Linie neue Zeilen in die Tabelle einfügen.\nDies ist die letzte Anweisung auf diesem Arbeitsblatt.","Fügen Sie neue Elemente hinzu, indem Sie oberhalb dieser Linie neue Zeilen einfügen."]

{"sheet":"Agiler Leitplan","index":1,"n_rows":100,"n_cols":8,"rows_kept":100}
["Dieses Arbeitsblatt enthält einen agiler Leitplan mit Meilensteinen und Aktivitäten aus dem Arbeitsblatt \"Leitplandaten\". \nDer Titel befindet sich in Zelle B1. \nErgebnisse mit dem Kommentar \"Keine Änderung\" sind in hellorange, RGB(255, 230, 210), hervorgehoben.\nAbgeschlossene Meilensteine oder Aktivitäten sind in hellgrün, RGB(237,251,219) hervorgehoben.","Agiler Leitplan"]
["Diagrammüberschriften befinden sich in den Zellen B2, D2, F2 und H2. Sie lauten: \"Abgeschlossen\", \"Aktuell\", \"Kurzfristig\" und \"Zukunft\". Bearbeiten Sie diese Überschriften, um die Werte für die Zielauswahl in der Tabelle \"Leitplandaten\" auf dem Arbeitsblatt \"Leitplandaten\" zu ändern.\nDie Zellen B3 bis H20 enthalten die Meilensteine und Aktivitäten für die Überschriften in dieser Zeile. \nMeilensteine und Aktivitäten werden auf dem Arbeitsblatt \"Leitplandaten\" erstellt.\nÄndern oder löschen Sie Einträge auf diesem Arbeitsblatt NICHT. Aktualisieren Sie die Tabelle \"Leitplandaten\" auf dem Arbeitsblatt \"Leitplandaten\", um die Inhalte auf diesem Arbeitsblatt zu ändern.\nDies ist die letzte Anweisung auf diesem Arbeitsblatt.","Abgeschlossen",null,"Aktuell",null,"Kurzfristig",null,"Zukunft"]
[null,{"$f":"IFERROR(INDEX(Aktivität,SMALL(IF(Ziel=$B$2,ROW(Aktivität)-MIN(ROW(Aktivität))+1),ROWS($B$3:B3)))&\" \"&CHAR(10)&(INDEX(Ergebnis,SMALL(IF(Ziel=$B$2,ROW(Ergebnis)-MIN(ROW(Ergebnis))+1),ROWS($B$3:B3))))&CHAR(10),\"\")","v":"Aktivität 9\nPhase 1 genehmigt \nUm 10 % verkleinern\n"},null,{"$f":"IFERROR(INDEX(Aktivität,SMALL(IF(Ziel=$D$2,ROW(Aktivität)-MIN(ROW(Aktivität))+1),ROWS($B$3:B3)))&CHAR(10),\"\")","v":"Aktivität 1\nPrototyp erstellen\n"},null,{"$f":"IFERROR(INDEX(Aktivität,SMALL(IF(Ziel=$F$2,ROW(Aktivität)-MIN(ROW(Aktivität))+1),ROWS($B$3:B3)))&CHAR(10),\"\")","v":"Aktivität 2\nPrototyp vorführen\n"},null,{"$f":"IFERROR(INDEX(Aktivität,SMALL(IF(Ziel=$H$2,ROW(Aktivität)-MIN(ROW(Aktivität))+1),ROWS($B$3:B3)))&CHAR(10),\"\")","v":"Aktivität 7\nEntwicklung der Implementierung von Phase eins auslagern\n"}]
[null,{"$f":"IFERROR(INDEX(Aktivität,SMALL(IF(Ziel=$B$2,ROW(Aktivität)-MIN(ROW(Aktivität))+1),ROWS($B$3:B4)))&\" \"&CHAR(10)&(INDEX(Ergebnis,SMALL(IF(Ziel=$B$2,ROW(Ergebnis)-MIN(ROW(Ergebnis))+1),ROWS($B$3:B4))))&CHAR(10),\"\")","v":"Aktivität 3 \nKeine Änderung\n"},null,{"$f":"IFERROR(INDEX(Aktivität,SMALL(IF(Ziel=$D$2,ROW(Aktivität)-MIN(ROW(Aktivität))+1),ROWS($B$3:B4)))&CHAR(10),\"\")","v":"Aktivität 6\n"},null,{"$f":"IFERROR(INDEX(Aktivität,SMALL(IF(Ziel=$F$2,ROW(Aktivität)-MIN(ROW(Aktivität))+1),ROWS($B$3:B4)))&CHAR(10),\"\")","v":"Aktivität 8\n"},null,{"$f":"IFERROR(INDEX(Aktivität,SMALL(IF(Ziel=$H$2,ROW(Aktivität)-MIN(ROW(Aktivität))+1),ROWS($B$3:B4)))&CHAR(10),\"\")","v":"Aktivität 10\n"}]
[null,{"$f":"IFERROR(INDEX(Aktivität,SMALL(IF(Ziel=$B$2,ROW(Aktivität)-MIN(ROW(Aktivität))+1),ROWS($B$3:B5)))&\" \"&CHAR(10)&(INDEX(Ergebnis,SMALL(IF(Ziel=$B$2,ROW(Ergebnis)-MIN(ROW(Ergebnis))+1),ROWS($B$3:B5))))&CHAR(10),\"\")","v":""},null,{"$f":"IFERROR(INDEX(Aktivität,SMALL(IF(Ziel=$D$2,ROW(Aktivität)-MIN(ROW(Aktivität))+1),ROWS($B$3:B5)))&CHAR(10),\"\")","v":"Aktivität 5\n"},null,{"$f":"IFERROR(INDEX(Aktivität,SMALL(IF(Ziel=$F$2,ROW(Aktivität)-MIN(ROW(Aktivität))+1),ROWS($B$3:B5)))&CHAR(10),\"\")","v":""},null,{"$f":"IFERROR(INDEX(Aktivität,SMALL(IF(Ziel=$H$2,ROW(Aktivität)-MIN(ROW(Aktivität))+1),ROWS($B$3:B5)))&CHAR(10),\"\")","v":"Aktivität 4\n"}]
[null,{"$f":"IFERROR(INDEX(Aktivität,SMALL(IF(Ziel=$B$2,ROW(Aktivität)-MIN(ROW(Aktivität))+1),ROWS($B$3:B6)))&\" \"&CHAR(10)&(INDEX(Ergebnis,SMALL(IF(Ziel=$B$2,ROW(Ergebnis)-MIN(ROW(Ergebnis))+1),ROWS($B$3:B6))))&CHAR(10),\"\")","v":""},null,{"$f":"IFERROR(INDEX(Aktivität,SMALL(IF(Ziel=$D$2,ROW(Aktivität)-MIN(ROW(Aktivität))+1),ROWS($B$3:B6)))&CHAR(10),\"\")","v":""},null,{"$f":"IFERROR(INDEX(Aktivität,SMALL(IF(Ziel=$F$2,ROW(Aktivität)-MIN(ROW(Aktivität))+1),ROWS($B$3:B6)))&CHAR(10),\"\")","v":""},null,{"$f":"IFERROR(INDEX(Aktivität,SMALL(IF(Ziel=$H$2,ROW(Aktivität)-MIN(ROW(Aktivität))+1),ROWS($B$3:B6)))&CHAR(10),\"\")","v":""}]
[null,{"$f":"IFERROR(INDEX(Aktivität,SMALL(IF(Ziel=$B$2,ROW(Aktivität)-MIN(ROW(Aktivität))+1),ROWS($B$3:B7)))&\" \"&CHAR(10)&(INDEX(Ergebnis,SMALL(IF(Ziel=$B$2,ROW(Ergebnis)-MIN(ROW(Ergebnis))+1),ROWS($B$3:B7))))&CHAR(10),\"\")","v":""},null,{"$f":"IFERROR(INDEX(Aktivität,SMALL(IF(Ziel=$D$2,ROW(Aktivität)-MIN(ROW(Aktivität))+1),ROWS($B$3:B7)))&CHAR(10),\"\")","v":""},null,{"$f":"IFERROR(INDEX(Aktivität,SMALL(IF(Ziel=$F$2,ROW(Aktivität)-MIN(ROW(Aktivität))+1),ROWS($B$3:B7)))&CHAR(10),\"\")","v":""},null,{"$f":"IFERROR(INDEX(Aktivität,SMALL(IF(Ziel=$H$2,ROW(Aktivität)-MIN(ROW(Aktivität))+1),ROWS($B$3:B7)))&CHAR(10),\"\")","v":""}]
[null,{"$f":"IFERROR(INDEX(Aktivität,SMALL(IF(Ziel=$B$2,ROW(Aktivität)-MIN(ROW(Aktivität))+1),ROWS($B$3:B8)))&\" \"&CHAR(10)&(INDEX(Ergebnis,SMALL(IF(Ziel=$B$2,ROW(Ergebnis)-MIN(ROW(Ergebnis))+1),ROWS($B$3:B8))))&CHAR(10),\"\")","v":""},null,{"$f":"IFERROR(INDEX(Aktivität,SMALL(IF(Ziel=$D$2,ROW(Aktivität)-MIN(ROW(Aktivität))+1),ROWS($B$3:B8)))&CHAR(10),\"\")","v":""},null,{"$f":"IFERROR(INDEX(Aktivität,SMALL(IF(Ziel=$F$2,ROW(Aktivität)-MIN(ROW(Aktivität))+1),ROWS($B$3:B8)))&CHAR(10),\"\")","v":""},null,{"$f":"IFERROR(INDEX(Aktivität,SMALL(IF(Ziel=$H$2,ROW(Aktivität)-MIN(ROW(Aktivität))+1),ROWS($B$3:B8)))&CHAR(10),\"\")","v":""}]
[null,{"$f":"IFERROR(INDEX(Aktivität,SMALL(IF(Ziel=$B$2,ROW(Aktivität)-MIN(ROW(Aktivität))+1),ROWS($B$3:B9)))&\" \"&CHAR(10)&(INDEX(Ergebnis,SMALL(IF(Ziel=$B$2,ROW(Ergebnis)-MIN(ROW(Ergebnis))+1),ROWS($B$3:B9))))&CHAR(10),\"\")","v":""},null,{"$f":"IFERROR(INDEX(Aktivität,SMALL(IF(Ziel=$D$2,ROW(Aktivität)-MIN(ROW(Aktivität))+1),ROWS($B$3:B9)))&CHAR(10),\"\")","v":""},null,{"$f":"IFERROR(INDEX(Aktivität,SMALL(IF(Ziel=$F$2,ROW(Aktivität)-MIN(ROW(Aktivität))+1),ROWS($B$3:B9)))&CHAR(10),\"\")","v":""},null,{"$f":"IFERROR(INDEX(Aktivität,SMALL(IF(Ziel=$H$2,ROW(Aktivität)-MIN(ROW(Aktivität))+1),ROWS($B$3:B9)))&CHAR(10),\"\")","v":""}]
[null,{"$f":"IFERROR(INDEX(Aktivität,SMALL(IF(Ziel=$B$2,ROW(Aktivität)-MIN(ROW(Aktivität))+1),ROWS($B$3:B10)))&\" \"&CHAR(10)&(INDEX(Ergebnis,SMALL(IF(Ziel=$B$2,ROW(Ergebnis)-MIN(ROW(Ergebnis))+1),ROWS($B$3:B10))))&CHAR(10),\"\")","v":""},null,{"$f":"IFERROR(INDEX(Aktivität,SMALL(IF(Ziel=$D$2,ROW(Aktivität)-MIN(ROW(Aktivität))+1),ROWS($B$3:B10)))&CHAR(10),\"\")","v":""},null,{"$f":"IFERROR(INDEX(Aktivität,SMALL(IF(Ziel=$F$2,ROW(Aktivität)-MIN(ROW(Aktivität))+1),ROWS($B$3:B10)))&CHAR(10),\"\")","v":""},null,{"$f":"IFERROR(INDEX(Aktivität,SMALL(IF(Ziel=$H$2,ROW(Aktivität)-MIN(ROW(Aktivität))+1),ROWS($B$3:B10)))&CHAR(10),\"\")","v":""}]
[null,{"$f":"IFERROR(INDEX(Aktivität,SMALL(IF(Ziel=$B$2,ROW(Aktivität)-MIN(ROW(Aktivität))+1),ROWS($B$3:B11)))&\" \"&CHAR(10)&(INDEX(Ergebnis,SMALL(IF(Ziel=$B$2,ROW(Ergebnis)-MIN(ROW(Ergebnis))+1),ROWS($B$3:B11))))&CHAR(10),\"\")","v":""},null,{"$f":"IFERROR(INDEX(Aktivität,SMALL(IF(Ziel=$D$2,ROW(Aktivität)-MIN(ROW(Aktivität))+1),ROWS($B$3:B11)))&CHAR(10),\"\")","v":""},null,{"$f":"IFERROR(INDEX(Aktivität,SMALL(IF(Ziel=$F$2,ROW(Aktivität)-MIN(ROW(Aktivität))+1),ROWS($B$3:B11)))&CHAR(10),\"\")","v":""},null,{"$f":"IFERROR(INDEX(Aktivität,SMALL(IF(Ziel=$H$2,ROW(Aktivität)-MIN(ROW(Aktivität))+1),ROWS($B$3:B11)))&CHAR(10),\"\")","v":""}]
[null,{"$f":"IFERROR(INDEX(Aktivität,SMALL(IF(Ziel=$B$2,ROW(Aktivität)-MIN(ROW(Aktivität))+1),ROWS($B$3:B12)))&\" \"&CHAR(10)&(INDEX(Ergebnis,SMALL(IF(Ziel=$B$2,ROW(Ergebnis)-MIN(ROW(Ergebnis))+1),ROWS($B$3:B12))))&CHAR(10),\"\")","v":""},null,{"$f":"IFERROR(INDEX(Aktivität,SMALL(IF(Ziel=$D$2,ROW(Aktivität)-MIN(ROW(Aktivität))+1),ROWS($B$3:B12)))&CHAR(10),\"\")","v":""},null,{"$f":"IFERROR(INDEX(Aktivität,SMALL(IF(Ziel=$F$2,ROW(Aktivität)-MIN(ROW(Aktivität))+1),ROWS($B$3:B12)))&CHAR(10),\"\")","v":""},null,{"$f":"IFERROR(INDEX(Aktivität,SMALL(IF(Ziel=$H$2,ROW(Aktivität)-MIN(ROW(Aktivität))+1),ROWS($B$3:B12)))&CHAR(10),\"\")","v":""}]
[null,{"$f":"IFERROR(INDEX(Aktivität,SMALL(IF(Ziel=$B$2,ROW(Aktivität)-MIN(ROW(Aktivität))+1),ROWS($B$3:B13)))&\" \"&CHAR(10)&(INDEX(Ergebnis,SMALL(IF(Ziel=$B$2,ROW(Ergebnis)-MIN(ROW(Ergebnis))+1),ROWS($B$3:B13))))&CHAR(10),\"\")","v":""},null,{"$f":"IFERROR(INDEX(Aktivität,SMALL(IF(Ziel=$D$2,ROW(Aktivität)-MIN(ROW(Aktivität))+1),ROWS($B$3:B13)))&CHAR(10),\"\")","v":""},null,{"$f":"IFERROR(INDEX(Aktivität,SMALL(IF(Ziel=$F$2,ROW(Aktivität)-MIN(ROW(Aktivität))+1),ROWS($B$3:B13)))&CHAR(10),\"\")","v":""},null,{"$f":"IFERROR(INDEX(Aktivität,SMALL(IF(Ziel=$H$2,ROW(Aktivität)-MIN(ROW(Aktivität))+1),ROWS($B$3:B13)))&CHAR(10),\"\")","v":""}]
[null,{"$f":"IFERROR(INDEX(Aktivität,SMALL(IF(Ziel=$B$2,ROW(Aktivität)-MIN(ROW(Aktivität))+1),ROWS($B$3:B14)))&\" \"&CHAR(10)&(INDEX(Ergebnis,SMALL(IF(Ziel=$B$2,ROW(Ergebnis)-MIN(ROW(Ergebnis))+1),ROWS($B$3:B14))))&CHAR(10),\"\")","v":""},null,{"$f":"IFERROR(INDEX(Aktivität,SMALL(IF(Ziel=$D$2,ROW(Aktivität)-MIN(ROW(Aktivität))+1),ROWS($B$3:B14)))&CHAR(10),\"\")","v":""},null,{"$f":"IFERROR(INDEX(Aktivität,SMALL(IF(Ziel=$F$2,ROW(Aktivität)-MIN(ROW(Aktivität))+1),ROWS($B$3:B14)))&CHAR(10),\"\")","v":""},null,{"$f":"IFERROR(INDEX(Aktivität,SMALL(IF(Ziel=$H$2,ROW(Aktivität)-MIN(ROW(Aktivität))+1),ROWS($B$3:B14)))&CHAR(10),\"\")","v":""}]
[null,{"$f":"IFERROR(INDEX(Aktivität,SMALL(IF(Ziel=$B$2,ROW(Aktivität)-MIN(ROW(Aktivität))+1),ROWS($B$3:B15)))&\" \"&CHAR(10)&(INDEX(Ergebnis,SMALL(IF(Ziel=$B$2,ROW(Ergebnis)-MIN(ROW(Ergebnis))+1),ROWS($B$3:B15))))&CHAR(10),\"\")","v":""},null,{"$f":"IFERROR(INDEX(Aktivität,SMALL(IF(Ziel=$D$2,ROW(Aktivität)-MIN(ROW(Aktivität))+1),ROWS($B$3:B15)))&CHAR(10),\"\")","v":""},null,{"$f":"IFERROR(INDEX(Aktivität,SMALL(IF(Ziel=$F$2,ROW(Aktivität)-MIN(ROW(Aktivität))+1),ROWS($B$3:B15)))&CHAR(10),\"\")","v":""},null,{"$f":"IFERROR(INDEX(Aktivität,SMALL(IF(Ziel=$H$2,ROW(Aktivität)-MIN(ROW(Aktivität))+1),ROWS($B$3:B15)))&CHAR(10),\"\")","v":""}]
[null,{"$f":"IFERROR(INDEX(Aktivität,SMALL(IF(Ziel=$B$2,ROW(Aktivität)-MIN(ROW(Aktivität))+1),ROWS($B$3:B16)))&\" \"&CHAR(10)&(INDEX(Ergebnis,SMALL(IF(Ziel=$B$2,ROW(Ergebnis)-MIN(ROW(Ergebnis))+1),ROWS($B$3:B16))))&CHAR(10),\"\")","v":""},null,{"$f":"IFERROR(INDEX(Aktivität,SMALL(IF(Ziel=$D$2,ROW(Aktivität)-MIN(ROW(Aktivität))+1),ROWS($B$3:B16)))&CHAR(10),\"\")","v":""},null,{"$f":"IFERROR(INDEX(Aktivität,SMALL(IF(Ziel=$F$2,ROW(Aktivität)-MIN(ROW(Aktivität))+1),ROWS($B$3:B16)))&CHAR(10),\"\")","v":""},null,{"$f":"IFERROR(INDEX(Aktivität,SMALL(IF(Ziel=$H$2,ROW(Aktivität)-MIN(ROW(Aktivität))+1),ROWS($B$3:B16)))&CHAR(10),\"\")","v":""}]
[null,{"$f":"IFERROR(INDEX(Aktivität,SMALL(IF(Ziel=$B$2,ROW(Aktivität)-MIN(ROW(Aktivität))+1),ROWS($B$3:B17)))&\" \"&CHAR(10)&(INDEX(Ergebnis,SMALL(IF(Ziel=$B$2,ROW(Ergebnis)-MIN(ROW(Ergebnis))+1),ROWS($B$3:B17))))&CHAR(10),\"\")","v":""},null,{"$f":"IFERROR(INDEX(Aktivität,SMALL(IF(Ziel=$D$2,ROW(Aktivität)-MIN(ROW(Aktivität))+1),ROWS($B$3:B17)))&CHAR(10),\"\")","v":""},null,{"$f":"IFERROR(INDEX(Aktivität,SMALL(IF(Ziel=$F$2,ROW(Aktivität)-MIN(ROW(Aktivität))+1),ROWS($B$3:B17)))&CHAR(10),\"\")","v":""},null,{"$f":"IFERROR(INDEX(Aktivität,SMALL(IF(Ziel=$H$2,ROW(Aktivität)-MIN(ROW(Aktivität))+1),ROWS($B$3:B17)))&CHAR(10),\"\")","v":""}]
[null,{"$f":"IFERROR(INDEX(Aktivität,SMALL(IF(Ziel=$B$2,ROW(Aktivität)-MIN(ROW(Aktivität))+1),ROWS($B$3:B18)))&\" \"&CHAR(10)&(INDEX(Ergebnis,SMALL(IF(Ziel=$B$2,ROW(Ergebnis)-MIN(ROW(Ergebnis))+1),ROWS($B$3:B18))))&CHAR(10),\"\")","v":""},null,{"$f":"IFERROR(INDEX(Aktivität,SMALL(IF(Ziel=$D$2,ROW(Aktivität)-MIN(ROW(Aktivität))+1),ROWS($B$3:B18)))&CHAR(10),\"\")","v":""},null,{"$f":"IFERROR(INDEX(Aktivität,SMALL(IF(Ziel=$F$2,ROW(Aktivität)-MIN(ROW(Aktivität))+1),ROWS($B$3:B18)))&CHAR(10),\"\")","v":""},null,{"$f":"IFERROR(INDEX(Aktivität,SMALL(IF(Ziel=$H$2,ROW(Aktivität)-MIN(ROW(Aktivität))+1),ROWS($B$3:B18)))&CHAR(10),\"\")","v":""}]
[null,{"$f":"IFERROR(INDEX(Aktivität,SMALL(IF(Ziel=$B$2,ROW(Aktivität)-MIN(ROW(Aktivität))+1),ROWS($B$3:B19)))&\" \"&CHAR(10)&(INDEX(Ergebnis,SMALL(IF(Ziel=$B$2,ROW(Ergebnis)-MIN(ROW(Ergebnis))+1),ROWS($B$3:B19))))&CHAR(10),\"\")","v":""},null,{"$f":"IFERROR(INDEX(Aktivität,SMALL(IF(Ziel=$D$2,ROW(Aktivität)-MIN(ROW(Aktivität))+1),ROWS($B$3:B19)))&CHAR(10),\"\")","v":""},null,{"$f":"IFERROR(INDEX(Aktivität,SMALL(IF(Ziel=$F$2,ROW(Aktivität)-MIN(ROW(Aktivität))+1),ROWS($B$3:B19)))&CHAR(10),\"\")","v":""},null,{"$f":"IFERROR(INDEX(Aktivität,SMALL(IF(Ziel=$H$2,ROW(Aktivität)-MIN(ROW(Aktivität))+1),ROWS($B$3:B19)))&CHAR(10),\"\")","v":""}]
[null,{"$f":"IFERROR(INDEX(Aktivität,SMALL(IF(Ziel=$B$2,ROW(Aktivität)-MIN(ROW(Aktivität))+1),ROWS($B$3:B20)))&\" \"&CHAR(10)&(INDEX(Ergebnis,SMALL(IF(Ziel=$B$2,ROW(Ergebnis)-MIN(ROW(Ergebnis))+1),ROWS($B$3:B20))))&CHAR(10),\"\")","v":""},null,{"$f":"IFERROR(INDEX(Aktivität,SMALL(IF(Ziel=$D$2,ROW(Aktivität)-MIN(ROW(Aktivität))+1),ROWS($B$3:B20)))&CHAR(10),\"\")","v":""},null,{"$f":"IFERROR(INDEX(Aktivität,SMALL(IF(Ziel=$F$2,ROW(Aktivität)-MIN(ROW(Aktivität))+1),ROWS($B$3:B20)))&CHAR(10),\"\")","v":""},null,{"$f":"IFERROR(INDEX(Aktivität,SMALL(IF(Ziel=$H$2,ROW(Aktivität)-MIN(ROW(Aktivität))+1),ROWS($B$3:B20)))&CHAR(10),\"\")","v":""}]
[null,{"$f":"IFERROR(INDEX(Aktivität,SMALL(IF(Ziel=$B$2,ROW(Aktivität)-MIN(ROW(Aktivität))+1),ROWS($B$3:B21)))&\" \"&CHAR(10)&(INDEX(Ergebnis,SMALL(IF(Ziel=$B$2,ROW(Ergebnis)-MIN(ROW(Ergebnis))+1),ROWS($B$3:B21))))&CHAR(10),\"\")","v":""},null,{"$f":"IFERROR(INDEX(Aktivität,SMALL(IF(Ziel=$D$2,ROW(Aktivität)-MIN(ROW(Aktivität))+1),ROWS($B$3:B21)))&CHAR(10),\"\")","v":""},null,{"$f":"IFERROR(INDEX(Aktivität,SMALL(IF(Ziel=$F$2,ROW(Aktivität)-MIN(ROW(Aktivität))+1),ROWS($B$3:B21)))&CHAR(10),\"\")","v":""},null,{"$f":"IFERROR(INDEX(Aktivität,SMALL(IF(Ziel=$H$2,ROW(Aktivität)-MIN(ROW(Aktivität))+1),ROWS($B$3:B21)))&CHAR(10),\"\")","v":""}]
[null,{"$f":"IFERROR(INDEX(Aktivität,SMALL(IF(Ziel=$B$2,ROW(Aktivität)-MIN(ROW(Aktivität))+1),ROWS($B$3:B22)))&\" \"&CHAR(10)&(INDEX(Ergebnis,SMALL(IF(Ziel=$B$2,ROW(Ergebnis)-MIN(ROW(Ergebnis))+1),ROWS($B$3:B22))))&CHAR(10),\"\")","v":""},null,{"$f":"IFERROR(INDEX(Aktivität,SMALL(IF(Ziel=$D$2,ROW(Aktivität)-MIN(ROW(Aktivität))+1),ROWS($B$3:B22)))&CHAR(10),\"\")","v":""},null,{"$f":"IFERROR(INDEX(Aktivität,SMALL(IF(Ziel=$F$2,ROW(Aktivität)-MIN(ROW(Aktivität))+1),ROWS($B$3:B22)))&CHAR(10),\"\")","v":""},null,{"$f":"IFERROR(INDEX(Aktivität,SMALL(IF(Ziel=$H$2,ROW(Aktivität)-MIN(ROW(Aktivität))+1),ROWS($B$3:B22)))&CHAR(10),\"\")","v":""}]
[null,{"$f":"IFERROR(INDEX(Aktivität,SMALL(IF(Ziel=$B$2,ROW(Aktivität)-MIN(ROW(Aktivität))+1),ROWS($B$3:B23)))&\" \"&CHAR(10)&(INDEX(Ergebnis,SMALL(IF(Ziel=$B$2,ROW(Ergebnis)-MIN(ROW(Ergebnis))+1),ROWS($B$3:B23))))&CHAR(10),\"\")","v":""},null,{"$f":"IFERROR(INDEX(Aktivität,SMALL(IF(Ziel=$D$2,ROW(Aktivität)-MIN(ROW(Aktivität))+1),ROWS($B$3:B23)))&CHAR(10),\"\")","v":""},null,{"$f":"IFERROR(INDEX(Aktivität,SMALL(IF(Ziel=$F$2,ROW(Aktivität)-MIN(ROW(Aktivität))+1),ROWS($B$3:B23)))&CHAR(10),\"\")","v":""},null,{"$f":"IFERROR(INDEX(Aktivität,SMALL(IF(Ziel=$H$2,ROW(Aktivität)-MIN(ROW(Aktivität))+1),ROWS($B$3:B23)))&CHAR(10),\"\")","v":""}]
[null,{"$f":"IFERROR(INDEX(Aktivität,SMALL(IF(Ziel=$B$2,ROW(Aktivität)-MIN(ROW(Aktivität))+1),ROWS($B$3:B24)))&\" \"&CHAR(10)&(INDEX(Ergebnis,SMALL(IF(Ziel=$B$2,ROW(Ergebnis)-MIN(ROW(Ergebnis))+1),ROWS($B$3:B24))))&CHAR(10),\"\")","v":""},null,{"$f":"IFERROR(INDEX(Aktivität,SMALL(IF(Ziel=$D$2,ROW(Aktivität)-MIN(ROW(Aktivität))+1),ROWS($B$3:B24)))&CHAR(10),\"\")","v":""},null,{"$f":"IFERROR(INDEX(Aktivität,SMALL(IF(Ziel=$F$2,ROW(Aktivität)-MIN(ROW(Aktivität))+1),ROWS($B$3:B24)))&CHAR(10),\"\")","v":""},null,{"$f":"IFERROR(INDEX(Aktivität,SMALL(IF(Ziel=$H$2,ROW(Aktivität)-MIN(ROW(Aktivität))+1),ROWS($B$3:B24)))&CHAR(10),\"\")","v":""}]
[null,{"$f":"IFERROR(INDEX(Aktivität,SMALL(IF(Ziel=$B$2,ROW(Aktivität)-MIN(ROW(Aktivität))+1),ROWS($B$3:B25)))&\" \"&CHAR(10)&(INDEX(Ergebnis,SMALL(IF(Ziel=$B$2,ROW(Ergebnis)-MIN(ROW(Ergebnis))+1),ROWS($B$3:B25))))&CHAR(10),\"\")","v":""},null,{"$f":"IFERROR(INDEX(Aktivität,SMALL(IF(Ziel=$D$2,ROW(Aktivität)-MIN(ROW(Aktivität))+1),ROWS($B$3:B25)))&CHAR(10),\"\")","v":""},null,{"$f":"IFERROR(INDEX(Aktivität,SMALL(IF(Ziel=$F$2,ROW(Aktivität)-MIN(ROW(Aktivität))+1),ROWS($B$3:B25)))&CHAR(10),\"\")","v":""},null,{"$f":"IFERROR(INDEX(Aktivität,SMALL(IF(Ziel=$H$2,ROW(Aktivität)-MIN(ROW(Aktivität))+1),ROWS($B$3:B25)))&CHAR(10),\"\")","v":""}]
[null,{"$f":"IFERROR(INDEX(Aktivität,SMALL(IF(Ziel=$B$2,ROW(Aktivität)-MIN(ROW(Aktivität))+1),ROWS($B$3:B26)))&\" \"&CHAR(10)&(INDEX(Ergebnis,SMALL(IF(Ziel=$B$2,ROW(Ergebnis)-MIN(ROW(Ergebnis))+1),ROWS($B$3:B26))))&CHAR(10),\"\")","v":""},null,{"$f":"IFERROR(INDEX(Aktivität,SMALL(IF(Ziel=$D$2,ROW(Aktivität)-MIN(ROW(Aktivität))+1),ROWS($B$3:B26)))&CHAR(10),\"\")","v":""},null,{"$f":"IFERROR(INDEX(Aktivität,SMALL(IF(Ziel=$F$2,ROW(Aktivität)-MIN(ROW(Aktivität))+1),ROWS($B$3:B26)))&CHAR(10),\"\")","v":""},null,{"$f":"IFERROR(INDEX(Aktivität,SMALL(IF(Ziel=$H$2,ROW(Aktivität)-MIN(ROW(Aktivität))+1),ROWS($B$3:B26)))&CHAR(10),\"\")","v":""}]
[null,{"$f":"IFERROR(INDEX(Aktivität,SMALL(IF(Ziel=$B$2,ROW(Aktivität)-MIN(ROW(Aktivität))+1),ROWS($B$3:B27)))&\" \"&CHAR(10)&(INDEX(Ergebnis,SMALL(IF(Ziel=$B$2,ROW(Ergebnis)-MIN(ROW(Ergebnis))+1),ROWS($B$3:B27))))&CHAR(10),\"\")","v":""},null,{"$f":"IFERROR(INDEX(Aktivität,SMALL(IF(Ziel=$D$2,ROW(Aktivität)-MIN(ROW(Aktivität))+1),ROWS($B$3:B27)))&CHAR(10),\"\")","v":""},null,{"$f":"IFERROR(INDEX(Aktivität,SMALL(IF(Ziel=$F$2,ROW(Aktivität)-MIN(ROW(Aktivität))+1),ROWS($B$3:B27)))&CHAR(10),\"\")","v":""},null,{"$f":"IFERROR(INDEX(Aktivität,SMALL(IF(Ziel=$H$2,ROW(Aktivität)-MIN(ROW(Aktivität))+1),ROWS($B$3:B27)))&CHAR(10),\"\")","v":""}]
[null,{"$f":"IFERROR(INDEX(Aktivität,SMALL(IF(Ziel=$B$2,ROW(Aktivität)-MIN(ROW(Aktivität))+1),ROWS($B$3:B28)))&\" \"&CHAR(10)&(INDEX(Ergebnis,SMALL(IF(Ziel=$B$2,ROW(Ergebnis)-MIN(ROW(Ergebnis))+1),ROWS($B$3:B28))))&CHAR(10),\"\")","v":""},null,{"$f":"IFERROR(INDEX(Aktivität,SMALL(IF(Ziel=$D$2,ROW(Aktivität)-MIN(ROW(Aktivität))+1),ROWS($B$3:B28)))&CHAR(10),\"\")","v":""},null,{"$f":"IFERROR(INDEX(Aktivität,SMALL(IF(Ziel=$F$2,ROW(Aktivität)-MIN(ROW(Aktivität))+1),ROWS($B$3:B28)))&CHAR(10),\"\")","v":""},null,{"$f":"IFERROR(INDEX(Aktivität,SMALL(IF(Ziel=$H$2,ROW(Aktivität)-MIN(ROW(Aktivität))+1),ROWS($B$3:B28)))&CHAR(10),\"\")","v":""}]
[null,{"$f":"IFERROR(INDEX(Aktivität,SMALL(IF(Ziel=$B$2,ROW(Aktivität)-MIN(ROW(Aktivität))+1),ROWS($B$3:B29)))&\" \"&CHAR(10)&(INDEX(Ergebnis,SMALL(IF(Ziel=$B$2,ROW(Ergebnis)-MIN(ROW(Ergebnis))+1),ROWS($B$3:B29))))&CHAR(10),\"\")","v":""},null,{"$f":"IFERROR(INDEX(Aktivität,SMALL(IF(Ziel=$D$2,ROW(Aktivität)-MIN(ROW(Aktivität))+1),ROWS($B$3:B29)))&CHAR(10),\"\")","v":""},null,{"$f":"IFERROR(INDEX(Aktivität,SMALL(IF(Ziel=$F$2,ROW(Aktivität)-MIN(ROW(Aktivität))+1),ROWS($B$3:B29)))&CHAR(10),\"\")","v":""},null,{"$f":"IFERROR(INDEX(Aktivität,SMALL(IF(Ziel=$H$2,ROW(Aktivität)-MIN(ROW(Aktivität))+1),ROWS($B$3:B29)))&CHAR(10),\"\")","v":""}]
[null,{"$f":"IFERROR(INDEX(Aktivität,SMALL(IF(Ziel=$B$2,ROW(Aktivität)-MIN(ROW(Aktivität))+1),ROWS($B$3:B30)))&\" \"&CHAR(10)&(INDEX(Ergebnis,SMALL(IF(Ziel=$B$2,ROW(Ergebnis)-MIN(ROW(Ergebnis))+1),ROWS($B$3:B30))))&CHAR(10),\"\")","v":""},null,{"$f":"IFERROR(INDEX(Aktivität,SMALL(IF(Ziel=$D$2,ROW(Aktivität)-MIN(ROW(Aktivität))+1),ROWS($B$3:B30)))&CHAR(10),\"\")","v":""},null,{"$f":"IFERROR(INDEX(Aktivität,SMALL(IF(Ziel=$F$2,ROW(Aktivität)-MIN(ROW(Aktivität))+1),ROWS($B$3:B30)))&CHAR(10),\"\")","v":""},null,{"$f":"IFERROR(INDEX(Aktivität,SMALL(IF(Ziel=$H$2,ROW(Aktivität)-MIN(ROW(Aktivität))+1),ROWS($B$3:B30)))&CHAR(10),\"\")","v":""}]
[null,{"$f":"IFERROR(INDEX(Aktivität,SMALL(IF(Ziel=$B$2,ROW(Aktivität)-MIN(ROW(Aktivität))+1),ROWS($B$3:B31)))&\" \"&CHAR(10)&(INDEX(Ergebnis,SMALL(IF(Ziel=$B$2,ROW(Ergebnis)-MIN(ROW(Ergebnis))+1),ROWS($B$3:B31))))&CHAR(10),\"\")","v":""},null,{"$f":"IFERROR(INDEX(Aktivität,SMALL(IF(Ziel=$D$2,ROW(Aktivität)-MIN(ROW(Aktivität))+1),ROWS($B$3:B31)))&CHAR(10),\"\")","v":""},null,{"$f":"IFERROR(INDEX(Aktivität,SMALL(IF(Ziel=$F$2,ROW(Aktivität)-MIN(ROW(Aktivität))+1),ROWS($B$3:B31)))&CHAR(10),\"\")","v":""},null,{"$f":"IFERROR(INDEX(Aktivität,SMALL(IF(Ziel=$H$2,ROW(Aktivität)-MIN(ROW(Aktivität))+1),ROWS($B$3:B31)))&CHAR(10),\"\")","v":""}]
[null,{"$f":"IFERROR(INDEX(Aktivität,SMALL(IF(Ziel=$B$2,ROW(Aktivität)-MIN(ROW(Aktivität))+1),ROWS($B$3:B32)))&\" \"&CHAR(10)&(INDEX(Ergebnis,SMALL(IF(Ziel=$B$2,ROW(Ergebnis)-MIN(ROW(Ergebnis))+1),ROWS($B$3:B32))))&CHAR(10),\"\")","v":""},null,{"$f":"IFERROR(INDEX(Aktivität,SMALL(IF(Ziel=$D$2,ROW(Aktivität)-MIN(ROW(Aktivität))+1),ROWS($B$3:B32)))&CHAR(10),\"\")","v":""},null,{"$f":"IFERROR(INDEX(Aktivität,SMALL(IF(Ziel=$F$2,ROW(Aktivität)-MIN(ROW(Aktivität))+1),ROWS($B$3:B32)))&CHAR(10),\"\")","v":""},null,{"$f":"IFERROR(INDEX(Aktivität,SMALL(IF(Ziel=$H$2,ROW(Aktivität)-MIN(ROW(Aktivität))+1),ROWS($B$3:B32)))&CHAR(10),\"\")","v":""}]
[null,{"$f":"IFERROR(INDEX(Aktivität,SMALL(IF(Ziel=$B$2,ROW(Aktivität)-MIN(ROW(Aktivität))+1),ROWS($B$3:B33)))&\" \"&CHAR(10)&(INDEX(Ergebnis,SMALL(IF(Ziel=$B$2,ROW(Ergebnis)-MIN(ROW(Ergebnis))+1),ROWS($B$3:B33))))&CHAR(10),\"\")","v":""},null,{"$f":"IFERROR(INDEX(Aktivität,SMALL(IF(Ziel=$D$2,ROW(Aktivität)-MIN(ROW(Aktivität))+1),ROWS($B$3:B33)))&CHAR(10),\"\")","v":""},null,{"$f":"IFERROR(INDEX(Aktivität,SMALL(IF(Ziel=$F$2,ROW(Aktivität)-MIN(ROW(Aktivität))+1),ROWS($B$3:B33)))&CHAR(10),\"\")","v":""},null,{"$f":"IFERROR(INDEX(Aktivität,SMALL(IF(Ziel=$H$2,ROW(Aktivität)-MIN(ROW(Aktivität))+1),ROWS($B$3:B33)))&CHAR(10),\"\")","v":""}]
[null,{"$f":"IFERROR(INDEX(Aktivität,SMALL(IF(Ziel=$B$2,ROW(Aktivität)-MIN(ROW(Aktivität))+1),ROWS($B$3:B34)))&\" \"&CHAR(10)&(INDEX(Ergebnis,SMALL(IF(Ziel=$B$2,ROW(Ergebnis)-MIN(ROW(Ergebnis))+1),ROWS($B$3:B34))))&CHAR(10),\"\")","v":""},null,{"$f":"IFERROR(INDEX(Aktivität,SMALL(IF(Ziel=$D$2,ROW(Aktivität)-MIN(ROW(Aktivität))+1),ROWS($B$3:B34)))&CHAR(10),\"\")","v":""},null,{"$f":"IFERROR(INDEX(Aktivität,SMALL(IF(Ziel=$F$2,ROW(Aktivität)-MIN(ROW(Aktivität))+1),ROWS($B$3:B34)))&CHAR(10),\"\")","v":""},null,{"$f":"IFERROR(INDEX(Aktivität,SMALL(IF(Ziel=$H$2,ROW(Aktivität)-MIN(ROW(Aktivität))+1),ROWS($B$3:B34)))&CHAR(10),\"\")","v":""}]
[null,{"$f":"IFERROR(INDEX(Aktivität,SMALL(IF(Ziel=$B$2,ROW(Aktivität)-MIN(ROW(Aktivität))+1),ROWS($B$3:B35)))&\" \"&CHAR(10)&(INDEX(Ergebnis,SMALL(IF(Ziel=$B$2,ROW(Ergebnis)-MIN(ROW(Ergebnis))+1),ROWS($B$3:B35))))&CHAR(10),\"\")","v":""},null,{"$f":"IFERROR(INDEX(Aktivität,SMALL(IF(Ziel=$D$2,ROW(Aktivität)-MIN(ROW(Aktivität))+1),ROWS($B$3:B35)))&CHAR(10),\"\")","v":""},null,{"$f":"IFERROR(INDEX(Aktivität,SMALL(IF(Ziel=$F$2,ROW(Aktivität)-MIN(ROW(Aktivität))+1),ROWS($B$3:B35)))&CHAR(10),\"\")","v":""},null,{"$f":"IFERROR(INDEX(Aktivität,SMALL(IF(Ziel=$H$2,ROW(Aktivität)-MIN(ROW(Aktivität))+1),ROWS($B$3:B35)))&CHAR(10),\"\")","v":""}]
[null,{"$f":"IFERROR(INDEX(Aktivität,SMALL(IF(Ziel=$B$2,ROW(Aktivität)-MIN(ROW(Aktivität))+1),ROWS($B$3:B36)))&\" \"&CHAR(10)&(INDEX(Ergebnis,SMALL(IF(Ziel=$B$2,ROW(Ergebnis)-MIN(ROW(Ergebnis))+1),ROWS($B$3:B36))))&CHAR(10),\"\")","v":""},null,{"$f":"IFERROR(INDEX(Aktivität,SMALL(IF(Ziel=$D$2,ROW(Aktivität)-MIN(ROW(Aktivität))+1),ROWS($B$3:B36)))&CHAR(10),\"\")","v":""},null,{"$f":"IFERROR(INDEX(Aktivität,SMALL(IF(Ziel=$F$2,ROW(Aktivität)-MIN(ROW(Aktivität))+1),ROWS($B$3:B36)))&CHAR(10),\"\")","v":""},null,{"$f":"IFERROR(INDEX(Aktivität,SMALL(IF(Ziel=$H$2,ROW(Aktivität)-MIN(ROW(Aktivität))+1),ROWS($B$3:B36)))&CHAR(10),\"\")","v":""}]
[null,{"$f":"IFERROR(INDEX(Aktivität,SMALL(IF(Ziel=$B$2,ROW(Aktivität)-MIN(ROW(Aktivität))+1),ROWS($B$3:B37)))&\" \"&CHAR(10)&(INDEX(Ergebnis,SMALL(IF(Ziel=$B$2,ROW(Ergebnis)-MIN(ROW(Ergebnis))+1),ROWS($B$3:B37))))&CHAR(10),\"\")","v":""},null,{"$f":"IFERROR(INDEX(Aktivität,SMALL(IF(Ziel=$D$2,ROW(Aktivität)-MIN(ROW(Aktivität))+1),ROWS($B$3:B37)))&CHAR(10),\"\")","v":""},null,{"$f":"IFERROR(INDEX(Aktivität,SMALL(IF(Ziel=$F$2,ROW(Aktivität)-MIN(ROW(Aktivität))+1),ROWS($B$3:B37)))&CHAR(10),\"\")","v":""},null,{"$f":"IFERROR(INDEX(Aktivität,SMALL(IF(Ziel=$H$2,ROW(Aktivität)-MIN(ROW(Aktivität))+1),ROWS($B$3:B37)))&CHAR(10),\"\")","v":""}]
[null,{"$f":"IFERROR(INDEX(Aktivität,SMALL(IF(Ziel=$B$2,ROW(Aktivität)-MIN(ROW(Aktivität))+1),ROWS($B$3:B38)))&\" \"&CHAR(10)&(INDEX(Ergebnis,SMALL(IF(Ziel=$B$2,ROW(Ergebnis)-MIN(ROW(Ergebnis))+1),ROWS($B$3:B38))))&CHAR(10),\"\")","v":""},null,{"$f":"IFERROR(INDEX(Aktivität,SMALL(IF(Ziel=$D$2,ROW(Aktivität)-MIN(ROW(Aktivität))+1),ROWS($B$3:B38)))&CHAR(10),\"\")","v":""},null,{"$f":"IFERROR(INDEX(Aktivität,SMALL(IF(Ziel=$F$2,ROW(Aktivität)-MIN(ROW(Aktivität))+1),ROWS($B$3:B38)))&CHAR(10),\"\")","v":""},null,{"$f":"IFERROR(INDEX(Aktivität,SMALL(IF(Ziel=$H$2,ROW(Aktivität)-MIN(ROW(Aktivität))+1),ROWS($B$3:B38)))&CHAR(10),\"\")","v":""}]
[null,{"$f":"IFERROR(INDEX(Aktivität,SMALL(IF(Ziel=$B$2,ROW(Aktivität)-MIN(ROW(Aktivität))+1),ROWS($B$3:B39)))&\" \"&CHAR(10)&(INDEX(Ergebnis,SMALL(IF(Ziel=$B$2,ROW(Ergebnis)-MIN(ROW(Ergebnis))+1),ROWS($B$3:B39))))&CHAR(10),\"\")","v":""},null,{"$f":"IFERROR(INDEX(Aktivität,SMALL(IF(Ziel=$D$2,ROW(Aktivität)-MIN(ROW(Aktivität))+1),ROWS($B$3:B39)))&CHAR(10),\"\")","v":""},null,{"$f":"IFERROR(INDEX(Aktivität,SMALL(IF(Ziel=$F$2,ROW(Aktivität)-MIN(ROW(Aktivität))+1),ROWS($B$3:B39)))&CHAR(10),\"\")","v":""},null,{"$f":"IFERROR(INDEX(Aktivität,SMALL(IF(Ziel=$H$2,ROW(Aktivität)-MIN(ROW(Aktivität))+1),ROWS($B$3:B39)))&CHAR(10),\"\")","v":""}]
[null,{"$f":"IFERROR(INDEX(Aktivität,SMALL(IF(Ziel=$B$2,ROW(Aktivität)-MIN(ROW(Aktivität))+1),ROWS($B$3:B40)))&\" \"&CHAR(10)&(INDEX(Ergebnis,SMALL(IF(Ziel=$B$2,ROW(Ergebnis)-MIN(ROW(Ergebnis))+1),ROWS($B$3:B40))))&CHAR(10),\"\")","v":""},null,{"$f":"IFERROR(INDEX(Aktivität,SMALL(IF(Ziel=$D$2,ROW(Aktivität)-MIN(ROW(Aktivität))+1),ROWS($B$3:B40)))&CHAR(10),\"\")","v":""},null,{"$f":"IFERROR(INDEX(Aktivität,SMALL(IF(Ziel=$F$2,ROW(Aktivität)-MIN(ROW(Aktivität))+1),ROWS($B$3:B40)))&CHAR(10),\"\")","v":""},null,{"$f":"IFERROR(INDEX(Aktivität,SMALL(IF(Ziel=$H$2,ROW(Aktivität)-MIN(ROW(Aktivität))+1),ROWS($B$3:B40)))&CHAR(10),\"\")","v":""}]
[null,{"$f":"IFERROR(INDEX(Aktivität,SMALL(IF(Ziel=$B$2,ROW(Aktivität)-MIN(ROW(Aktivität))+1),ROWS($B$3:B41)))&\" \"&CHAR(10)&(INDEX(Ergebnis,SMALL(IF(Ziel=$B$2,ROW(Ergebnis)-MIN(ROW(Ergebnis))+1),ROWS($B$3:B41))))&CHAR(10),\"\")","v":""},null,{"$f":"IFERROR(INDEX(Aktivität,SMALL(IF(Ziel=$D$2,ROW(Aktivität)-MIN(ROW(Aktivität))+1),ROWS($B$3:B41)))&CHAR(10),\"\")","v":""},null,{"$f":"IFERROR(INDEX(Aktivität,SMALL(IF(Ziel=$F$2,ROW(Aktivität)-MIN(ROW(Aktivität))+1),ROWS($B$3:B41)))&CHAR(10),\"\")","v":""},null,{"$f":"IFERROR(INDEX(Aktivität,SMALL(IF(Ziel=$H$2,ROW(Aktivität)-MIN(ROW(Aktivität))+1),ROWS($B$3:B41)))&CHAR(10),\"\")","v":""}]
[null,{"$f":"IFERROR(INDEX(Aktivität,SMALL(IF(Ziel=$B$2,ROW(Aktivität)-MIN(ROW(Aktivität))+1),ROWS($B$3:B42)))&\" \"&CHAR(10)&(INDEX(Ergebnis,SMALL(IF(Ziel=$B$2,ROW(Ergebnis)-MIN(ROW(Ergebnis))+1),ROWS($B$3:B42))))&CHAR(10),\"\")","v":""},null,{"$f":"IFERROR(INDEX(Aktivität,SMALL(IF(Ziel=$D$2,ROW(Aktivität)-MIN(ROW(Aktivität))+1),ROWS($B$3:B42)))&CHAR(10),\"\")","v":""},null,{"$f":"IFERROR(INDEX(Aktivität,SMALL(IF(Ziel=$F$2,ROW(Aktivität)-MIN(ROW(Aktivität))+1),ROWS($B$3:B42)))&CHAR(10),\"\")","v":""},null,{"$f":"IFERROR(INDEX(Aktivität,SMALL(IF(Ziel=$H$2,ROW(Aktivität)-MIN(ROW(Aktivität))+1),ROWS($B$3:B42)))&CHAR(10),\"\")","v":""}]
[null,{"$f":"IFERROR(INDEX(Aktivität,SMALL(IF(Ziel=$B$2,ROW(Aktivität)-MIN(ROW(Aktivität))+1),ROWS($B$3:B43)))&\" \"&CHAR(10)&(INDEX(Ergebnis,SMALL(IF(Ziel=$B$2,ROW(Ergebnis)-MIN(ROW(Ergebnis))+1),ROWS($B$3:B43))))&CHAR(10),\"\")","v":""},null,{"$f":"IFERROR(INDEX(Aktivität,SMALL(IF(Ziel=$D$2,ROW(Aktivität)-MIN(ROW(Aktivität))+1),ROWS($B$3:B43)))&CHAR(10),\"\")","v":""},null,{"$f":"IFERROR(INDEX(Aktivität,SMALL(IF(Ziel=$F$2,ROW(Aktivität)-MIN(ROW(Aktivität))+1),ROWS($B$3:B43)))&CHAR(10),\"\")","v":""},null,{"$f":"IFERROR(INDEX(Aktivität,SMALL(IF(Ziel=$H$2,ROW(Aktivität)-MIN(ROW(Aktivität))+1),ROWS($B$3:B43)))&CHAR(10),\"\")","v":""}]
[null,{"$f":"IFERROR(INDEX(Aktivität,SMALL(IF(Ziel=$B$2,ROW(Aktivität)-MIN(ROW(Aktivität))+1),ROWS($B$3:B44)))&\" \"&CHAR(10)&(INDEX(Ergebnis,SMALL(IF(Ziel=$B$2,ROW(Ergebnis)-MIN(ROW(Ergebnis))+1),ROWS($B$3:B44))))&CHAR(10),\"\")","v":""},null,{"$f":"IFERROR(INDEX(Aktivität,SMALL(IF(Ziel=$D$2,ROW(Aktivität)-MIN(ROW(Aktivität))+1),ROWS($B$3:B44)))&CHAR(10),\"\")","v":""},null,{"$f":"IFERROR(INDEX(Aktivität,SMALL(IF(Ziel=$F$2,ROW(Aktivität)-MIN(ROW(Aktivität))+1),ROWS($B$3:B44)))&CHAR(10),\"\")","v":""},null,{"$f":"IFERROR(INDEX(Aktivität,SMALL(IF(Ziel=$H$2,ROW(Aktivität)-MIN(ROW(Aktivität))+1),ROWS($B$3:B44)))&CHAR(10),\"\")","v":""}]
[null,{"$f":"IFERROR(INDEX(Aktivität,SMALL(IF(Ziel=$B$2,ROW(Aktivität)-MIN(ROW(Aktivität))+1),ROWS($B$3:B45)))&\" \"&CHAR(10)&(INDEX(Ergebnis,SMALL(IF(Ziel=$B$2,ROW(Ergebnis)-MIN(ROW(Ergebnis))+1),ROWS($B$3:B45))))&CHAR(10),\"\")","v":""},null,{"$f":"IFERROR(INDEX(Aktivität,SMALL(IF(Ziel=$D$2,ROW(Aktivität)-MIN(ROW(Aktivität))+1),ROWS($B$3:B45)))&CHAR(10),\"\")","v":""},null,{"$f":"IFERROR(INDEX(Aktivität,SMALL(IF(Ziel=$F$2,ROW(Aktivität)-MIN(ROW(Aktivität))+1),ROWS($B$3:B45)))&CHAR(10),\"\")","v":""},null,{"$f":"IFERROR(INDEX(Aktivität,SMALL(IF(Ziel=$H$2,ROW(Aktivität)-MIN(ROW(Aktivität))+1),ROWS($B$3:B45)))&CHAR(10),\"\")","v":""}]
[null,{"$f":"IFERROR(INDEX(Aktivität,SMALL(IF(Ziel=$B$2,ROW(Aktivität)-MIN(ROW(Aktivität))+1),ROWS($B$3:B46)))&\" \"&CHAR(10)&(INDEX(Ergebnis,SMALL(IF(Ziel=$B$2,ROW(Ergebnis)-MIN(ROW(Ergebnis))+1),ROWS($B$3:B46))))&CHAR(10),\"\")","v":""},null,{"$f":"IFERROR(INDEX(Aktivität,SMALL(IF(Ziel=$D$2,ROW(Aktivität)-MIN(ROW(Aktivität))+1),ROWS($B$3:B46)))&CHAR(10),\"\")","v":""},null,{"$f":"IFERROR(INDEX(Aktivität,SMALL(IF(Ziel=$F$2,ROW(Aktivität)-MIN(ROW(Aktivität))+1),ROWS($B$3:B46)))&CHAR(10),\"\")","v":""},null,{"$f":"IFERROR(INDEX(Aktivität,SMALL(IF(Ziel=$H$2,ROW(Aktivität)-MIN(ROW(Aktivität))+1),ROWS($B$3:B46)))&CHAR(10),\"\")","v":""}]
[null,{"$f":"IFERROR(INDEX(Aktivität,SMALL(IF(Ziel=$B$2,ROW(Aktivität)-MIN(ROW(Aktivität))+1),ROWS($B$3:B47)))&\" \"&CHAR(10)&(INDEX(Ergebnis,SMALL(IF(Ziel=$B$2,ROW(Ergebnis)-MIN(ROW(Ergebnis))+1),ROWS($B$3:B47))))&CHAR(10),\"\")","v":""},null,{"$f":"IFERROR(INDEX(Aktivität,SMALL(IF(Ziel=$D$2,ROW(Aktivität)-MIN(ROW(Aktivität))+1),ROWS($B$3:B47)))&CHAR(10),\"\")","v":""},null,{"$f":"IFERROR(INDEX(Aktivität,SMALL(IF(Ziel=$F$2,ROW(Aktivität)-MIN(ROW(Aktivität))+1),ROWS($B$3:B47)))&CHAR(10),\"\")","v":""},null,{"$f":"IFERROR(INDEX(Aktivität,SMALL(IF(Ziel=$H$2,ROW(Aktivität)-MIN(ROW(Aktivität))+1),ROWS($B$3:B47)))&CHAR(10),\"\")","v":""}]
[null,{"$f":"IFERROR(INDEX(Aktivität,SMALL(IF(Ziel=$B$2,ROW(Aktivität)-MIN(ROW(Aktivität))+1),ROWS($B$3:B48)))&\" \"&CHAR(10)&(INDEX(Ergebnis,SMALL(IF(Ziel=$B$2,ROW(Ergebnis)-MIN(ROW(Ergebnis))+1),ROWS($B$3:B48))))&CHAR(10),\"\")","v":""},null,{"$f":"IFERROR(INDEX(Aktivität,SMALL(IF(Ziel=$D$2,ROW(Aktivität)-MIN(ROW(Aktivität))+1),ROWS($B$3:B48)))&CHAR(10),\"\")","v":""},null,{"$f":"IFERROR(INDEX(Aktivität,SMALL(IF(Ziel=$F$2,ROW(Aktivität)-MIN(ROW(Aktivität))+1),ROWS($B$3:B48)))&CHAR(10),\"\")","v":""},null,{"$f":"IFERROR(INDEX(Aktivität,SMALL(IF(Ziel=$H$2,ROW(Aktivität)-MIN(ROW(Aktivität))+1),ROWS($B$3:B48)))&CHAR(10),\"\")","v":""}]
[null,{"$f":"IFERROR(INDEX(Aktivität,SMALL(IF(Ziel=$B$2,ROW(Aktivität)-MIN(ROW(Aktivität))+1),ROWS($B$3:B49)))&\" \"&CHAR(10)&(INDEX(Ergebnis,SMALL(IF(Ziel=$B$2,ROW(Ergebnis)-MIN(ROW(Ergebnis))+1),ROWS($B$3:B49))))&CHAR(10),\"\")","v":""},null,{"$f":"IFERROR(INDEX(Aktivität,SMALL(IF(Ziel=$D$2,ROW(Aktivität)-MIN(ROW(Aktivität))+1),ROWS($B$3:B49)))&CHAR(10),\"\")","v":""},null,{"$f":"IFERROR(INDEX(Aktivität,SMALL(IF(Ziel=$F$2,ROW(Aktivität)-MIN(ROW(Aktivität))+1),ROWS($B$3:B49)))&CHAR(10),\"\")","v":""},null,{"$f":"IFERROR(INDEX(Aktivität,SMALL(IF(Ziel=$H$2,ROW(Aktivität)-MIN(ROW(Aktivität))+1),ROWS($B$3:B49)))&CHAR(10),\"\")","v":""}]
[null,{"$f":"IFERROR(INDEX(Aktivität,SMALL(IF(Ziel=$B$2,ROW(Aktivität)-MIN(ROW(Aktivität))+1),ROWS($B$3:B50)))&\" \"&CHAR(10)&(INDEX(Ergebnis,SMALL(IF(Ziel=$B$2,ROW(Ergebnis)-MIN(ROW(Ergebnis))+1),ROWS($B$3:B50))))&CHAR(10),\"\")","v":""},null,{"$f":"IFERROR(INDEX(Aktivität,SMALL(IF(Ziel=$D$2,ROW(Aktivität)-MIN(ROW(Aktivität))+1),ROWS($B$3:B50)))&CHAR(10),\"\")","v":""},null,{"$f":"IFERROR(INDEX(Aktivität,SMALL(IF(Ziel=$F$2,ROW(Aktivität)-MIN(ROW(Aktivität))+1),ROWS($B$3:B50)))&CHAR(10),\"\")","v":""},null,{"$f":"IFERROR(INDEX(Aktivität,SMALL(IF(Ziel=$H$2,ROW(Aktivität)-MIN(ROW(Aktivität))+1),ROWS($B$3:B50)))&CHAR(10),\"\")","v":""}]
[null,{"$f":"IFERROR(INDEX(Aktivität,SMALL(IF(Ziel=$B$2,ROW(Aktivität)-MIN(ROW(Aktivität))+1),ROWS($B$3:B51)))&\" \"&CHAR(10)&(INDEX(Ergebnis,SMALL(IF(Ziel=$B$2,ROW(Ergebnis)-MIN(ROW(Ergebnis))+1),ROWS($B$3:B51))))&CHAR(10),\"\")","v":""},null,{"$f":"IFERROR(INDEX(Aktivität,SMALL(IF(Ziel=$D$2,ROW(Aktivität)-MIN(ROW(Aktivität))+1),ROWS($B$3:B51)))&CHAR(10),\"\")","v":""},null,{"$f":"IFERROR(INDEX(Aktivität,SMALL(IF(Ziel=$F$2,ROW(Aktivität)-MIN(ROW(Aktivität))+1),ROWS($B$3:B51)))&CHAR(10),\"\")","v":""},null,{"$f":"IFERROR(INDEX(Aktivität,SMALL(IF(Ziel=$H$2,ROW(Aktivität)-MIN(ROW(Aktivität))+1),ROWS($B$3:B51)))&CHAR(10),\"\")","v":""}]
[null,{"$f":"IFERROR(INDEX(Aktivität,SMALL(IF(Ziel=$B$2,ROW(Aktivität)-MIN(ROW(Aktivität))+1),ROWS($B$3:B52)))&\" \"&CHAR(10)&(INDEX(Ergebnis,SMALL(IF(Ziel=$B$2,ROW(Ergebnis)-MIN(ROW(Ergebnis))+1),ROWS($B$3:B52))))&CHAR(10),\"\")","v":""},null,{"$f":"IFERROR(INDEX(Aktivität,SMALL(IF(Ziel=$D$2,ROW(Aktivität)-MIN(ROW(Aktivität))+1),ROWS($B$3:B52)))&CHAR(10),\"\")","v":""},null,{"$f":"IFERROR(INDEX(Aktivität,SMALL(IF(Ziel=$F$2,ROW(Aktivität)-MIN(ROW(Aktivität))+1),ROWS($B$3:B52)))&CHAR(10),\"\")","v":""},null,{"$f":"IFERROR(INDEX(Aktivität,SMALL(IF(Ziel=$H$2,ROW(Aktivität)-MIN(ROW(Aktivität))+1),ROWS($B$3:B52)))&CHAR(10),\"\")","v":""}]
[null,{"$f":"IFERROR(INDEX(Aktivität,SMALL(IF(Ziel=$B$2,ROW(Aktivität)-MIN(ROW(Aktivität))+1),ROWS($B$3:B53)))&\" \"&CHAR(10)&(INDEX(Ergebnis,SMALL(IF(Ziel=$B$2,ROW(Ergebnis)-MIN(ROW(Ergebnis))+1),ROWS($B$3:B53))))&CHAR(10),\"\")","v":""},null,{"$f":"IFERROR(INDEX(Aktivität,SMALL(IF(Ziel=$D$2,ROW(Aktivität)-MIN(ROW(Aktivität))+1),ROWS($B$3:B53)))&CHAR(10),\"\")","v":""},null,{"$f":"IFERROR(INDEX(Aktivität,SMALL(IF(Ziel=$F$2,ROW(Aktivität)-MIN(ROW(Aktivität))+1),ROWS($B$3:B53)))&CHAR(10),\"\")","v":""},null,{"$f":"IFERROR(INDEX(Aktivität,SMALL(IF(Ziel=$H$2,ROW(Aktivität)-MIN(ROW(Aktivität))+1),ROWS($B$3:B53)))&CHAR(10),\"\")","v":""}]
[null,{"$f":"IFERROR(INDEX(Aktivität,SMALL(IF(Ziel=$B$2,ROW(Aktivität)-MIN(ROW(Aktivität))+1),ROWS($B$3:B54)))&\" \"&CHAR(10)&(INDEX(Ergebnis,SMALL(IF(Ziel=$B$2,ROW(Ergebnis)-MIN(ROW(Ergebnis))+1),ROWS($B$3:B54))))&CHAR(10),\"\")","v":""},null,{"$f":"IFERROR(INDEX(Aktivität,SMALL(IF(Ziel=$D$2,ROW(Aktivität)-MIN(ROW(Aktivität))+1),ROWS($B$3:B54)))&CHAR(10),\"\")","v":""},null,{"$f":"IFERROR(INDEX(Aktivität,SMALL(IF(Ziel=$F$2,ROW(Aktivität)-MIN(ROW(Aktivität))+1),ROWS($B$3:B54)))&CHAR(10),\"\")","v":""},null,{"$f":"IFERROR(INDEX(Aktivität,SMALL(IF(Ziel=$H$2,ROW(Aktivität)-MIN(ROW(Aktivität))+1),ROWS($B$3:B54)))&CHAR(10),\"\")","v":""}]
[null,{"$f":"IFERROR(INDEX(Aktivität,SMALL(IF(Ziel=$B$2,ROW(Aktivität)-MIN(ROW(Aktivität))+1),ROWS($B$3:B55)))&\" \"&CHAR(10)&(INDEX(Ergebnis,SMALL(IF(Ziel=$B$2,ROW(Ergebnis)-MIN(ROW(Ergebnis))+1),ROWS($B$3:B55))))&CHAR(10),\"\")","v":""},null,{"$f":"IFERROR(INDEX(Aktivität,SMALL(IF(Ziel=$D$2,ROW(Aktivität)-MIN(ROW(Aktivität))+1),ROWS($B$3:B55)))&CHAR(10),\"\")","v":""},null,{"$f":"IFERROR(INDEX(Aktivität,SMALL(IF(Ziel=$F$2,ROW(Aktivität)-MIN(ROW(Aktivität))+1),ROWS($B$3:B55)))&CHAR(10),\"\")","v":""},null,{"$f":"IFERROR(INDEX(Aktivität,SMALL(IF(Ziel=$H$2,ROW(Aktivität)-MIN(ROW(Aktivität))+1),ROWS($B$3:B55)))&CHAR(10),\"\")","v":""}]
[null,{"$f":"IFERROR(INDEX(Aktivität,SMALL(IF(Ziel=$B$2,ROW(Aktivität)-MIN(ROW(Aktivität))+1),ROWS($B$3:B56)))&\" \"&CHAR(10)&(INDEX(Ergebnis,SMALL(IF(Ziel=$B$2,ROW(Ergebnis)-MIN(ROW(Ergebnis))+1),ROWS($B$3:B56))))&CHAR(10),\"\")","v":""},null,{"$f":"IFERROR(INDEX(Aktivität,SMALL(IF(Ziel=$D$2,ROW(Aktivität)-MIN(ROW(Aktivität))+1),ROWS($B$3:B56)))&CHAR(10),\"\")","v":""},null,{"$f":"IFERROR(INDEX(Aktivität,SMALL(IF(Ziel=$F$2,ROW(Aktivität)-MIN(ROW(Aktivität))+1),ROWS($B$3:B56)))&CHAR(10),\"\")","v":""},null,{"$f":"IFERROR(INDEX(Aktivität,SMALL(IF(Ziel=$H$2,ROW(Aktivität)-MIN(ROW(Aktivität))+1),ROWS($B$3:B56)))&CHAR(10),\"\")","v":""}]
[null,{"$f":"IFERROR(INDEX(Aktivität,SMALL(IF(Ziel=$B$2,ROW(Aktivität)-MIN(ROW(Aktivität))+1),ROWS($B$3:B57)))&\" \"&CHAR(10)&(INDEX(Ergebnis,SMALL(IF(Ziel=$B$2,ROW(Ergebnis)-MIN(ROW(Ergebnis))+1),ROWS($B$3:B57))))&CHAR(10),\"\")","v":""},null,{"$f":"IFERROR(INDEX(Aktivität,SMALL(IF(Ziel=$D$2,ROW(Aktivität)-MIN(ROW(Aktivität))+1),ROWS($B$3:B57)))&CHAR(10),\"\")","v":""},null,{"$f":"IFERROR(INDEX(Aktivität,SMALL(IF(Ziel=$F$2,ROW(Aktivität)-MIN(ROW(Aktivität))+1),ROWS($B$3:B57)))&CHAR(10),\"\")","v":""},null,{"$f":"IFERROR(INDEX(Aktivität,SMALL(IF(Ziel=$H$2,ROW(Aktivität)-MIN(ROW(Aktivität))+1),ROWS($B$3:B57)))&CHAR(10),\"\")","v":""}]
[null,{"$f":"IFERROR(INDEX(Aktivität,SMALL(IF(Ziel=$B$2,ROW(Aktivität)-MIN(ROW(Aktivität))+1),ROWS($B$3:B58)))&\" \"&CHAR(10)&(INDEX(Ergebnis,SMALL(IF(Ziel=$B$2,ROW(Ergebnis)-MIN(ROW(Ergebnis))+1),ROWS($B$3:B58))))&CHAR(10),\"\")","v":""},null,{"$f":"IFERROR(INDEX(Aktivität,SMALL(IF(Ziel=$D$2,ROW(Aktivität)-MIN(ROW(Aktivität))+1),ROWS($B$3:B58)))&CHAR(10),\"\")","v":""},null,{"$f":"IFERROR(INDEX(Aktivität,SMALL(IF(Ziel=$F$2,ROW(Aktivität)-MIN(ROW(Aktivität))+1),ROWS($B$3:B58)))&CHAR(10),\"\")","v":""},null,{"$f":"IFERROR(INDEX(Aktivität,SMALL(IF(Ziel=$H$2,ROW(Aktivität)-MIN(ROW(Aktivität))+1),ROWS($B$3:B58)))&CHAR(10),\"\")","v":""}]
[null,{"$f":"IFERROR(INDEX(Aktivität,SMALL(IF(Ziel=$B$2,ROW(Aktivität)-MIN(ROW(Aktivität))+1),ROWS($B$3:B59)))&\" \"&CHAR(10)&(INDEX(Ergebnis,SMALL(IF(Ziel=$B$2,ROW(Ergebnis)-MIN(ROW(Ergebnis))+1),ROWS($B$3:B59))))&CHAR(10),\"\")","v":""},null,{"$f":"IFERROR(INDEX(Aktivität,SMALL(IF(Ziel=$D$2,ROW(Aktivität)-MIN(ROW(Aktivität))+1),ROWS($B$3:B59)))&CHAR(10),\"\")","v":""},null,{"$f":"IFERROR(INDEX(Aktivität,SMALL(IF(Ziel=$F$2,ROW(Aktivität)-MIN(ROW(Aktivität))+1),ROWS($B$3:B59)))&CHAR(10),\"\")","v":""},null,{"$f":"IFERROR(INDEX(Aktivität,SMALL(IF(Ziel=$H$2,ROW(Aktivität)-MIN(ROW(Aktivität))+1),ROWS($B$3:B59)))&CHAR(10),\"\")","v":""}]
[null,{"$f":"IFERROR(INDEX(Aktivität,SMALL(IF(Ziel=$B$2,ROW(Aktivität)-MIN(ROW(Aktivität))+1),ROWS($B$3:B60)))&\" \"&CHAR(10)&(INDEX(Ergebnis,SMALL(IF(Ziel=$B$2,ROW(Ergebnis)-MIN(ROW(Ergebnis))+1),ROWS($B$3:B60))))&CHAR(10),\"\")","v":""},null,{"$f":"IFERROR(INDEX(Aktivität,SMALL(IF(Ziel=$D$2,ROW(Aktivität)-MIN(ROW(Aktivität))+1),ROWS($B$3:B60)))&CHAR(10),\"\")","v":""},null,{"$f":"IFERROR(INDEX(Aktivität,SMALL(IF(Ziel=$F$2,ROW(Aktivität)-MIN(ROW(Aktivität))+1),ROWS($B$3:B60)))&CHAR(10),\"\")","v":""},null,{"$f":"IFERROR(INDEX(Aktivität,SMALL(IF(Ziel=$H$2,ROW(Aktivität)-MIN(ROW(Aktivität))+1),ROWS($B$3:B60)))&CHAR(10),\"\")","v":""}]
[null,{"$f":"IFERROR(INDEX(Aktivität,SMALL(IF(Ziel=$B$2,ROW(Aktivität)-MIN(ROW(Aktivität))+1),ROWS($B$3:B61)))&\" \"&CHAR(10)&(INDEX(Ergebnis,SMALL(IF(Ziel=$B$2,ROW(Ergebnis)-MIN(ROW(Ergebnis))+1),ROWS($B$3:B61))))&CHAR(10),\"\")","v":""},null,{"$f":"IFERROR(INDEX(Aktivität,SMALL(IF(Ziel=$D$2,ROW(Aktivität)-MIN(ROW(Aktivität))+1),ROWS($B$3:B61)))&CHAR(10),\"\")","v":""},null,{"$f":"IFERROR(INDEX(Aktivität,SMALL(IF(Ziel=$F$2,ROW(Aktivität)-MIN(ROW(Aktivität))+1),ROWS($B$3:B61)))&CHAR(10),\"\")","v":""},null,{"$f":"IFERROR(INDEX(Aktivität,SMALL(IF(Ziel=$H$2,ROW(Aktivität)-MIN(ROW(Aktivität))+1),ROWS($B$3:B61)))&CHAR(10),\"\")","v":""}]
[null,{"$f":"IFERROR(INDEX(Aktivität,SMALL(IF(Ziel=$B$2,ROW(Aktivität)-MIN(ROW(Aktivität))+1),ROWS($B$3:B62)))&\" \"&CHAR(10)&(INDEX(Ergebnis,SMALL(IF(Ziel=$B$2,ROW(Ergebnis)-MIN(ROW(Ergebnis))+1),ROWS($B$3:B62))))&CHAR(10),\"\")","v":""},null,{"$f":"IFERROR(INDEX(Aktivität,SMALL(IF(Ziel=$D$2,ROW(Aktivität)-MIN(ROW(Aktivität))+1),ROWS($B$3:B62)))&CHAR(10),\"\")","v":""},null,{"$f":"IFERROR(INDEX(Aktivität,SMALL(IF(Ziel=$F$2,ROW(Aktivität)-MIN(ROW(Aktivität))+1),ROWS($B$3:B62)))&CHAR(10),\"\")","v":""},null,{"$f":"IFERROR(INDEX(Aktivität,SMALL(IF(Ziel=$H$2,ROW(Aktivität)-MIN(ROW(Aktivität))+1),ROWS($B$3:B62)))&CHAR(10),\"\")","v":""}]
[null,{"$f":"IFERROR(INDEX(Aktivität,SMALL(IF(Ziel=$B$2,ROW(Aktivität)-MIN(ROW(Aktivität))+1),ROWS($B$3:B63)))&\" \"&CHAR(10)&(INDEX(Ergebnis,SMALL(IF(Ziel=$B$2,ROW(Ergebnis)-MIN(ROW(Ergebnis))+1),ROWS($B$3:B63))))&CHAR(10),\"\")","v":""},null,{"$f":"IFERROR(INDEX(Aktivität,SMALL(IF(Ziel=$D$2,ROW(Aktivität)-MIN(ROW(Aktivität))+1),ROWS($B$3:B63)))&CHAR(10),\"\")","v":""},null,{"$f":"IFERROR(INDEX(Aktivität,SMALL(IF(Ziel=$F$2,ROW(Aktivität)-MIN(ROW(Aktivität))+1),ROWS($B$3:B63)))&CHAR(10),\"\")","v":""},null,{"$f":"IFERROR(INDEX(Aktivität,SMALL(IF(Ziel=$H$2,ROW(Aktivität)-MIN(ROW(Aktivität))+1),ROWS($B$3:B63)))&CHAR(10),\"\")","v":""}]
[null,{"$f":"IFERROR(INDEX(Aktivität,SMALL(IF(Ziel=$B$2,ROW(Aktivität)-MIN(ROW(Aktivität))+1),ROWS($B$3:B64)))&\" \"&CHAR(10)&(INDEX(Ergebnis,SMALL(IF(Ziel=$B$2,ROW(Ergebnis)-MIN(ROW(Ergebnis))+1),ROWS($B$3:B64))))&CHAR(10),\"\")","v":""},null,{"$f":"IFERROR(INDEX(Aktivität,SMALL(IF(Ziel=$D$2,ROW(Aktivität)-MIN(ROW(Aktivität))+1),ROWS($B$3:B64)))&CHAR(10),\"\")","v":""},null,{"$f":"IFERROR(INDEX(Aktivität,SMALL(IF(Ziel=$F$2,ROW(Aktivität)-MIN(ROW(Aktivität))+1),ROWS($B$3:B64)))&CHAR(10),\"\")","v":""},null,{"$f":"IFERROR(INDEX(Aktivität,SMALL(IF(Ziel=$H$2,ROW(Aktivität)-MIN(ROW(Aktivität))+1),ROWS($B$3:B64)))&CHAR(10),\"\")","v":""}]
[null,{"$f":"IFERROR(INDEX(Aktivität,SMALL(IF(Ziel=$B$2,ROW(Aktivität)-MIN(ROW(Aktivität))+1),ROWS($B$3:B65)))&\" \"&CHAR(10)&(INDEX(Ergebnis,SMALL(IF(Ziel=$B$2,ROW(Ergebnis)-MIN(ROW(Ergebnis))+1),ROWS($B$3:B65))))&CHAR(10),\"\")","v":""},null,{"$f":"IFERROR(INDEX(Aktivität,SMALL(IF(Ziel=$D$2,ROW(Aktivität)-MIN(ROW(Aktivität))+1),ROWS($B$3:B65)))&CHAR(10),\"\")","v":""},null,{"$f":"IFERROR(INDEX(Aktivität,SMALL(IF(Ziel=$F$2,ROW(Aktivität)-MIN(ROW(Aktivität))+1),ROWS($B$3:B65)))&CHAR(10),\"\")","v":""},null,{"$f":"IFERROR(INDEX(Aktivität,SMALL(IF(Ziel=$H$2,ROW(Aktivität)-MIN(ROW(Aktivität))+1),ROWS($B$3:B65)))&CHAR(10),\"\")","v":""}]
[null,{"$f":"IFERROR(INDEX(Aktivität,SMALL(IF(Ziel=$B$2,ROW(Aktivität)-MIN(ROW(Aktivität))+1),ROWS($B$3:B66)))&\" \"&CHAR(10)&(INDEX(Ergebnis,SMALL(IF(Ziel=$B$2,ROW(Ergebnis)-MIN(ROW(Ergebnis))+1),ROWS($B$3:B66))))&CHAR(10),\"\")","v":""},null,{"$f":"IFERROR(INDEX(Aktivität,SMALL(IF(Ziel=$D$2,ROW(Aktivität)-MIN(ROW(Aktivität))+1),ROWS($B$3:B66)))&CHAR(10),\"\")","v":""},null,{"$f":"IFERROR(INDEX(Aktivität,SMALL(IF(Ziel=$F$2,ROW(Aktivität)-MIN(ROW(Aktivität))+1),ROWS($B$3:B66)))&CHAR(10),\"\")","v":""},null,{"$f":"IFERROR(INDEX(Aktivität,SMALL(IF(Ziel=$H$2,ROW(Aktivität)-MIN(ROW(Aktivität))+1),ROWS($B$3:B66)))&CHAR(10),\"\")","v":""}]
[null,{"$f":"IFERROR(INDEX(Aktivität,SMALL(IF(Ziel=$B$2,ROW(Aktivität)-MIN(ROW(Aktivität))+1),ROWS($B$3:B67)))&\" \"&CHAR(10)&(INDEX(Ergebnis,SMALL(IF(Ziel=$B$2,ROW(Ergebnis)-MIN(ROW(Ergebnis))+1),ROWS($B$3:B67))))&CHAR(10),\"\")","v":""},null,{"$f":"IFERROR(INDEX(Aktivität,SMALL(IF(Ziel=$D$2,ROW(Aktivität)-MIN(ROW(Aktivität))+1),ROWS($B$3:B67)))&CHAR(10),\"\")","v":""},null,{"$f":"IFERROR(INDEX(Aktivität,SMALL(IF(Ziel=$F$2,ROW(Aktivität)-MIN(ROW(Aktivität))+1),ROWS($B$3:B67)))&CHAR(10),\"\")","v":""},null,{"$f":"IFERROR(INDEX(Aktivität,SMALL(IF(Ziel=$H$2,ROW(Aktivität)-MIN(ROW(Aktivität))+1),ROWS($B$3:B67)))&CHAR(10),\"\")","v":""}]
[null,{"$f":"IFERROR(INDEX(Aktivität,SMALL(IF(Ziel=$B$2,ROW(Aktivität)-MIN(ROW(Aktivität))+1),ROWS($B$3:B68)))&\" \"&CHAR(10)&(INDEX(Ergebnis,SMALL(IF(Ziel=$B$2,ROW(Ergebnis)-MIN(ROW(Ergebnis))+1),ROWS($B$3:B68))))&CHAR(10),\"\")","v":""},null,{"$f":"IFERROR(INDEX(Aktivität,SMALL(IF(Ziel=$D$2,ROW(Aktivität)-MIN(ROW(Aktivität))+1),ROWS($B$3:B68)))&CHAR(10),\"\")","v":""},null,{"$f":"IFERROR(INDEX(Aktivität,SMALL(IF(Ziel=$F$2,ROW(Aktivität)-MIN(ROW(Aktivität))+1),ROWS($B$3:B68)))&CHAR(10),\"\")","v":""},null,{"$f":"IFERROR(INDEX(Aktivität,SMALL(IF(Ziel=$H$2,ROW(Aktivität)-MIN(ROW(Aktivität))+1),ROWS($B$3:B68)))&CHAR(10),\"\")","v":""}]
[null,{"$f":"IFERROR(INDEX(Aktivität,SMALL(IF(Ziel=$B$2,ROW(Aktivität)-MIN(ROW(Aktivität))+1),ROWS($B$3:B69)))&\" \"&CHAR(10)&(INDEX(Ergebnis,SMALL(IF(Ziel=$B$2,ROW(Ergebnis)-MIN(ROW(Ergebnis))+1),ROWS($B$3:B69))))&CHAR(10),\"\")","v":""},null,{"$f":"IFERROR(INDEX(Aktivität,SMALL(IF(Ziel=$D$2,ROW(Aktivität)-MIN(ROW(Aktivität))+1),ROWS($B$3:B69)))&CHAR(10),\"\")","v":""},null,{"$f":"IFERROR(INDEX(Aktivität,SMALL(IF(Ziel=$F$2,ROW(Aktivität)-MIN(ROW(Aktivität))+1),ROWS($B$3:B69)))&CHAR(10),\"\")","v":""},null,{"$f":"IFERROR(INDEX(Aktivität,SMALL(IF(Ziel=$H$2,ROW(Aktivität)-MIN(ROW(Aktivität))+1),ROWS($B$3:B69)))&CHAR(10),\"\")","v":""}]
[null,{"$f":"IFERROR(INDEX(Aktivität,SMALL(IF(Ziel=$B$2,ROW(Aktivität)-MIN(ROW(Aktivität))+1),ROWS($B$3:B70)))&\" \"&CHAR(10)&(INDEX(Ergebnis,SMALL(IF(Ziel=$B$2,ROW(Ergebnis)-MIN(ROW(Ergebnis))+1),ROWS($B$3:B70))))&CHAR(10),\"\")","v":""},null,{"$f":"IFERROR(INDEX(Aktivität,SMALL(IF(Ziel=$D$2,ROW(Aktivität)-MIN(ROW(Aktivität))+1),ROWS($B$3:B70)))&CHAR(10),\"\")","v":""},null,{"$f":"IFERROR(INDEX(Aktivität,SMALL(IF(Ziel=$F$2,ROW(Aktivität)-MIN(ROW(Aktivität))+1),ROWS($B$3:B70)))&CHAR(10),\"\")","v":""},null,{"$f":"IFERROR(INDEX(Aktivität,SMALL(IF(Ziel=$H$2,ROW(Aktivität)-MIN(ROW(Aktivität))+1),ROWS($B$3:B70)))&CHAR(10),\"\")","v":""}]
[null,{"$f":"IFERROR(INDEX(Aktivität,SMALL(IF(Ziel=$B$2,ROW(Aktivität)-MIN(ROW(Aktivität))+1),ROWS($B$3:B71)))&\" \"&CHAR(10)&(INDEX(Ergebnis,SMALL(IF(Ziel=$B$2,ROW(Ergebnis)-MIN(ROW(Ergebnis))+1),ROWS($B$3:B71))))&CHAR(10),\"\")","v":""},null,{"$f":"IFERROR(INDEX(Aktivität,SMALL(IF(Ziel=$D$2,ROW(Aktivität)-MIN(ROW(Aktivität))+1),ROWS($B$3:B71)))&CHAR(10),\"\")","v":""},null,{"$f":"IFERROR(INDEX(Aktivität,SMALL(IF(Ziel=$F$2,ROW(Aktivität)-MIN(ROW(Aktivität))+1),ROWS($B$3:B71)))&CHAR(10),\"\")","v":""},null,{"$f":"IFERROR(INDEX(Aktivität,SMALL(IF(Ziel=$H$2,ROW(Aktivität)-MIN(ROW(Aktivität))+1),ROWS($B$3:B71)))&CHAR(10),\"\")","v":""}]
[null,{"$f":"IFERROR(INDEX(Aktivität,SMALL(IF(Ziel=$B$2,ROW(Aktivität)-MIN(ROW(Aktivität))+1),ROWS($B$3:B72)))&\" \"&CHAR(10)&(INDEX(Ergebnis,SMALL(IF(Ziel=$B$2,ROW(Ergebnis)-MIN(ROW(Ergebnis))+1),ROWS($B$3:B72))))&CHAR(10),\"\")","v":""},null,{"$f":"IFERROR(INDEX(Aktivität,SMALL(IF(Ziel=$D$2,ROW(Aktivität)-MIN(ROW(Aktivität))+1),ROWS($B$3:B72)))&CHAR(10),\"\")","v":""},null,{"$f":"IFERROR(INDEX(Aktivität,SMALL(IF(Ziel=$F$2,ROW(Aktivität)-MIN(ROW(Aktivität))+1),ROWS($B$3:B72)))&CHAR(10),\"\")","v":""},null,{"$f":"IFERROR(INDEX(Aktivität,SMALL(IF(Ziel=$H$2,ROW(Aktivität)-MIN(ROW(Aktivität))+1),ROWS($B$3:B72)))&CHAR(10),\"\")","v":""}]
[null,{"$f":"IFERROR(INDEX(Aktivität,SMALL(IF(Ziel=$B$2,ROW(Aktivität)-MIN(ROW(Aktivität))+1),ROWS($B$3:B73)))&\" \"&CHAR(10)&(INDEX(Ergebnis,SMALL(IF(Ziel=$B$2,ROW(Ergebnis)-MIN(ROW(Ergebnis))+1),ROWS($B$3:B73))))&CHAR(10),\"\")","v":""},null,{"$f":"IFERROR(INDEX(Aktivität,SMALL(IF(Ziel=$D$2,ROW(Aktivität)-MIN(ROW(Aktivität))+1),ROWS($B$3:B73)))&CHAR(10),\"\")","v":""},null,{"$f":"IFERROR(INDEX(Aktivität,SMALL(IF(Ziel=$F$2,ROW(Aktivität)-MIN(ROW(Aktivität))+1),ROWS($B$3:B73)))&CHAR(10),\"\")","v":""},null,{"$f":"IFERROR(INDEX(Aktivität,SMALL(IF(Ziel=$H$2,ROW(Aktivität)-MIN(ROW(Aktivität))+1),ROWS($B$3:B73)))&CHAR(10),\"\")","v":""}]
[null,{"$f":"IFERROR(INDEX(Aktivität,SMALL(IF(Ziel=$B$2,ROW(Aktivität)-MIN(ROW(Aktivität))+1),ROWS($B$3:B74)))&\" \"&CHAR(10)&(INDEX(Ergebnis,SMALL(IF(Ziel=$B$2,ROW(Ergebnis)-MIN(ROW(Ergebnis))+1),ROWS($B$3:B74))))&CHAR(10),\"\")","v":""},null,{"$f":"IFERROR(INDEX(Aktivität,SMALL(IF(Ziel=$D$2,ROW(Aktivität)-MIN(ROW(Aktivität))+1),ROWS($B$3:B74)))&CHAR(10),\"\")","v":""},null,{"$f":"IFERROR(INDEX(Aktivität,SMALL(IF(Ziel=$F$2,ROW(Aktivität)-MIN(ROW(Aktivität))+1),ROWS($B$3:B74)))&CHAR(10),\"\")","v":""},null,{"$f":"IFERROR(INDEX(Aktivität,SMALL(IF(Ziel=$H$2,ROW(Aktivität)-MIN(ROW(Aktivität))+1),ROWS($B$3:B74)))&CHAR(10),\"\")","v":""}]
[null,{"$f":"IFERROR(INDEX(Aktivität,SMALL(IF(Ziel=$B$2,ROW(Aktivität)-MIN(ROW(Aktivität))+1),ROWS($B$3:B75)))&\" \"&CHAR(10)&(INDEX(Ergebnis,SMALL(IF(Ziel=$B$2,ROW(Ergebnis)-MIN(ROW(Ergebnis))+1),ROWS($B$3:B75))))&CHAR(10),\"\")","v":""},null,{"$f":"IFERROR(INDEX(Aktivität,SMALL(IF(Ziel=$D$2,ROW(Aktivität)-MIN(ROW(Aktivität))+1),ROWS($B$3:B75)))&CHAR(10),\"\")","v":""},null,{"$f":"IFERROR(INDEX(Aktivität,SMALL(IF(Ziel=$F$2,ROW(Aktivität)-MIN(ROW(Aktivität))+1),ROWS($B$3:B75)))&CHAR(10),\"\")","v":""},null,{"$f":"IFERROR(INDEX(Aktivität,SMALL(IF(Ziel=$H$2,ROW(Aktivität)-MIN(ROW(Aktivität))+1),ROWS($B$3:B75)))&CHAR(10),\"\")","v":""}]
[null,{"$f":"IFERROR(INDEX(Aktivität,SMALL(IF(Ziel=$B$2,ROW(Aktivität)-MIN(ROW(Aktivität))+1),ROWS($B$3:B76)))&\" \"&CHAR(10)&(INDEX(Ergebnis,SMALL(IF(Ziel=$B$2,ROW(Ergebnis)-MIN(ROW(Ergebnis))+1),ROWS($B$3:B76))))&CHAR(10),\"\")","v":""},null,{"$f":"IFERROR(INDEX(Aktivität,SMALL(IF(Ziel=$D$2,ROW(Aktivität)-MIN(ROW(Aktivität))+1),ROWS($B$3:B76)))&CHAR(10),\"\")","v":""},null,{"$f":"IFERROR(INDEX(Aktivität,SMALL(IF(Ziel=$F$2,ROW(Aktivität)-MIN(ROW(Aktivität))+1),ROWS($B$3:B76)))&CHAR(10),\"\")","v":""},null,{"$f":"IFERROR(INDEX(Aktivität,SMALL(IF(Ziel=$H$2,ROW(Aktivität)-MIN(ROW(Aktivität))+1),ROWS($B$3:B76)))&CHAR(10),\"\")","v":""}]
[null,{"$f":"IFERROR(INDEX(Aktivität,SMALL(IF(Ziel=$B$2,ROW(Aktivität)-MIN(ROW(Aktivität))+1),ROWS($B$3:B77)))&\" \"&CHAR(10)&(INDEX(Ergebnis,SMALL(IF(Ziel=$B$2,ROW(Ergebnis)-MIN(ROW(Ergebnis))+1),ROWS($B$3:B77))))&CHAR(10),\"\")","v":""},null,{"$f":"IFERROR(INDEX(Aktivität,SMALL(IF(Ziel=$D$2,ROW(Aktivität)-MIN(ROW(Aktivität))+1),ROWS($B$3:B77)))&CHAR(10),\"\")","v":""},null,{"$f":"IFERROR(INDEX(Aktivität,SMALL(IF(Ziel=$F$2,ROW(Aktivität)-MIN(ROW(Aktivität))+1),ROWS($B$3:B77)))&CHAR(10),\"\")","v":""},null,{"$f":"IFERROR(INDEX(Aktivität,SMALL(IF(Ziel=$H$2,ROW(Aktivität)-MIN(ROW(Aktivität))+1),ROWS($B$3:B77)))&CHAR(10),\"\")","v":""}]
[null,{"$f":"IFERROR(INDEX(Aktivität,SMALL(IF(Ziel=$B$2,ROW(Aktivität)-MIN(ROW(Aktivität))+1),ROWS($B$3:B78)))&\" \"&CHAR(10)&(INDEX(Ergebnis,SMALL(IF(Ziel=$B$2,ROW(Ergebnis)-MIN(ROW(Ergebnis))+1),ROWS($B$3:B78))))&CHAR(10),\"\")","v":""},null,{"$f":"IFERROR(INDEX(Aktivität,SMALL(IF(Ziel=$D$2,ROW(Aktivität)-MIN(ROW(Aktivität))+1),ROWS($B$3:B78)))&CHAR(10),\"\")","v":""},null,{"$f":"IFERROR(INDEX(Aktivität,SMALL(IF(Ziel=$F$2,ROW(Aktivität)-MIN(ROW(Aktivität))+1),ROWS($B$3:B78)))&CHAR(10),\"\")","v":""},null,{"$f":"IFERROR(INDEX(Aktivität,SMALL(IF(Ziel=$H$2,ROW(Aktivität)-MIN(ROW(Aktivität))+1),ROWS($B$3:B78)))&CHAR(10),\"\")","v":""}]
[null,{"$f":"IFERROR(INDEX(Aktivität,SMALL(IF(Ziel=$B$2,ROW(Aktivität)-MIN(ROW(Aktivität))+1),ROWS($B$3:B79)))&\" \"&CHAR(10)&(INDEX(Ergebnis,SMALL(IF(Ziel=$B$2,ROW(Ergebnis)-MIN(ROW(Ergebnis))+1),ROWS($B$3:B79))))&CHAR(10),\"\")","v":""},null,{"$f":"IFERROR(INDEX(Aktivität,SMALL(IF(Ziel=$D$2,ROW(Aktivität)-MIN(ROW(Aktivität))+1),ROWS($B$3:B79)))&CHAR(10),\"\")","v":""},null,{"$f":"IFERROR(INDEX(Aktivität,SMALL(IF(Ziel=$F$2,ROW(Aktivität)-MIN(ROW(Aktivität))+1),ROWS($B$3:B79)))&CHAR(10),\"\")","v":""},null,{"$f":"IFERROR(INDEX(Aktivität,SMALL(IF(Ziel=$H$2,ROW(Aktivität)-MIN(ROW(Aktivität))+1),ROWS($B$3:B79)))&CHAR(10),\"\")","v":""}]
[null,{"$f":"IFERROR(INDEX(Aktivität,SMALL(IF(Ziel=$B$2,ROW(Aktivität)-MIN(ROW(Aktivität))+1),ROWS($B$3:B80)))&\" \"&CHAR(10)&(INDEX(Ergebnis,SMALL(IF(Ziel=$B$2,ROW(Ergebnis)-MIN(ROW(Ergebnis))+1),ROWS($B$3:B80))))&CHAR(10),\"\")","v":""},null,{"$f":"IFERROR(INDEX(Aktivität,SMALL(IF(Ziel=$D$2,ROW(Aktivität)-MIN(ROW(Aktivität))+1),ROWS($B$3:B80)))&CHAR(10),\"\")","v":""},null,{"$f":"IFERROR(INDEX(Aktivität,SMALL(IF(Ziel=$F$2,ROW(Aktivität)-MIN(ROW(Aktivität))+1),ROWS($B$3:B80)))&CHAR(10),\"\")","v":""},null,{"$f":"IFERROR(INDEX(Aktivität,SMALL(IF(Ziel=$H$2,ROW(Aktivität)-MIN(ROW(Aktivität))+1),ROWS($B$3:B80)))&CHAR(10),\"\")","v":""}]
[null,{"$f":"IFERROR(INDEX(Aktivität,SMALL(IF(Ziel=$B$2,ROW(Aktivität)-MIN(ROW(Aktivität))+1),ROWS($B$3:B81)))&\" \"&CHAR(10)&(INDEX(Ergebnis,SMALL(IF(Ziel=$B$2,ROW(Ergebnis)-MIN(ROW(Ergebnis))+1),ROWS($B$3:B81))))&CHAR(10),\"\")","v":""},null,{"$f":"IFERROR(INDEX(Aktivität,SMALL(IF(Ziel=$D$2,ROW(Aktivität)-MIN(ROW(Aktivität))+1),ROWS($B$3:B81)))&CHAR(10),\"\")","v":""},null,{"$f":"IFERROR(INDEX(Aktivität,SMALL(IF(Ziel=$F$2,ROW(Aktivität)-MIN(ROW(Aktivität))+1),ROWS($B$3:B81)))&CHAR(10),\"\")","v":""},null,{"$f":"IFERROR(INDEX(Aktivität,SMALL(IF(Ziel=$H$2,ROW(Aktivität)-MIN(ROW(Aktivität))+1),ROWS($B$3:B81)))&CHAR(10),\"\")","v":""}]
[null,{"$f":"IFERROR(INDEX(Aktivität,SMALL(IF(Ziel=$B$2,ROW(Aktivität)-MIN(ROW(Aktivität))+1),ROWS($B$3:B82)))&\" \"&CHAR(10)&(INDEX(Ergebnis,SMALL(IF(Ziel=$B$2,ROW(Ergebnis)-MIN(ROW(Ergebnis))+1),ROWS($B$3:B82))))&CHAR(10),\"\")","v":""},null,{"$f":"IFERROR(INDEX(Aktivität,SMALL(IF(Ziel=$D$2,ROW(Aktivität)-MIN(ROW(Aktivität))+1),ROWS($B$3:B82)))&CHAR(10),\"\")","v":""},null,{"$f":"IFERROR(INDEX(Aktivität,SMALL(IF(Ziel=$F$2,ROW(Aktivität)-MIN(ROW(Aktivität))+1),ROWS($B$3:B82)))&CHAR(10),\"\")","v":""},null,{"$f":"IFERROR(INDEX(Aktivität,SMALL(IF(Ziel=$H$2,ROW(Aktivität)-MIN(ROW(Aktivität))+1),ROWS($B$3:B82)))&CHAR(10),\"\")","v":""}]
[null,{"$f":"IFERROR(INDEX(Aktivität,SMALL(IF(Ziel=$B$2,ROW(Aktivität)-MIN(ROW(Aktivität))+1),ROWS($B$3:B83)))&\" \"&CHAR(10)&(INDEX(Ergebnis,SMALL(IF(Ziel=$B$2,ROW(Ergebnis)-MIN(ROW(Ergebnis))+1),ROWS($B$3:B83))))&CHAR(10),\"\")","v":""},null,{"$f":"IFERROR(INDEX(Aktivität,SMALL(IF(Ziel=$D$2,ROW(Aktivität)-MIN(ROW(Aktivität))+1),ROWS($B$3:B83)))&CHAR(10),\"\")","v":""},null,{"$f":"IFERROR(INDEX(Aktivität,SMALL(IF(Ziel=$F$2,ROW(Aktivität)-MIN(ROW(Aktivität))+1),ROWS($B$3:B83)))&CHAR(10),\"\")","v":""},null,{"$f":"IFERROR(INDEX(Aktivität,SMALL(IF(Ziel=$H$2,ROW(Aktivität)-MIN(ROW(Aktivität))+1),ROWS($B$3:B83)))&CHAR(10),\"\")","v":""}]
[null,{"$f":"IFERROR(INDEX(Aktivität,SMALL(IF(Ziel=$B$2,ROW(Aktivität)-MIN(ROW(Aktivität))+1),ROWS($B$3:B84)))&\" \"&CHAR(10)&(INDEX(Ergebnis,SMALL(IF(Ziel=$B$2,ROW(Ergebnis)-MIN(ROW(Ergebnis))+1),ROWS($B$3:B84))))&CHAR(10),\"\")","v":""},null,{"$f":"IFERROR(INDEX(Aktivität,SMALL(IF(Ziel=$D$2,ROW(Aktivität)-MIN(ROW(Aktivität))+1),ROWS($B$3:B84)))&CHAR(10),\"\")","v":""},null,{"$f":"IFERROR(INDEX(Aktivität,SMALL(IF(Ziel=$F$2,ROW(Aktivität)-MIN(ROW(Aktivität))+1),ROWS($B$3:B84)))&CHAR(10),\"\")","v":""},null,{"$f":"IFERROR(INDEX(Aktivität,SMALL(IF(Ziel=$H$2,ROW(Aktivität)-MIN(ROW(Aktivität))+1),ROWS($B$3:B84)))&CHAR(10),\"\")","v":""}]
[null,{"$f":"IFERROR(INDEX(Aktivität,SMALL(IF(Ziel=$B$2,ROW(Aktivität)-MIN(ROW(Aktivität))+1),ROWS($B$3:B85)))&\" \"&CHAR(10)&(INDEX(Ergebnis,SMALL(IF(Ziel=$B$2,ROW(Ergebnis)-MIN(ROW(Ergebnis))+1),ROWS($B$3:B85))))&CHAR(10),\"\")","v":""},null,{"$f":"IFERROR(INDEX(Aktivität,SMALL(IF(Ziel=$D$2,ROW(Aktivität)-MIN(ROW(Aktivität))+1),ROWS($B$3:B85)))&CHAR(10),\"\")","v":""},null,{"$f":"IFERROR(INDEX(Aktivität,SMALL(IF(Ziel=$F$2,ROW(Aktivität)-MIN(ROW(Aktivität))+1),ROWS($B$3:B85)))&CHAR(10),\"\")","v":""},null,{"$f":"IFERROR(INDEX(Aktivität,SMALL(IF(Ziel=$H$2,ROW(Aktivität)-MIN(ROW(Aktivität))+1),ROWS($B$3:B85)))&CHAR(10),\"\")","v":""}]
[null,{"$f":"IFERROR(INDEX(Aktivität,SMALL(IF(Ziel=$B$2,ROW(Aktivität)-MIN(ROW(Aktivität))+1),ROWS($B$3:B86)))&\" \"&CHAR(10)&(INDEX(Ergebnis,SMALL(IF(Ziel=$B$2,ROW(Ergebnis)-MIN(ROW(Ergebnis))+1),ROWS($B$3:B86))))&CHAR(10),\"\")","v":""},null,{"$f":"IFERROR(INDEX(Aktivität,SMALL(IF(Ziel=$D$2,ROW(Aktivität)-MIN(ROW(Aktivität))+1),ROWS($B$3:B86)))&CHAR(10),\"\")","v":""},null,{"$f":"IFERROR(INDEX(Aktivität,SMALL(IF(Ziel=$F$2,ROW(Aktivität)-MIN(ROW(Aktivität))+1),ROWS($B$3:B86)))&CHAR(10),\"\")","v":""},null,{"$f":"IFERROR(INDEX(Aktivität,SMALL(IF(Ziel=$H$2,ROW(Aktivität)-MIN(ROW(Aktivität))+1),ROWS($B$3:B86)))&CHAR(10),\"\")","v":""}]
[null,{"$f":"IFERROR(INDEX(Aktivität,SMALL(IF(Ziel=$B$2,ROW(Aktivität)-MIN(ROW(Aktivität))+1),ROWS($B$3:B87)))&\" \"&CHAR(10)&(INDEX(Ergebnis,SMALL(IF(Ziel=$B$2,ROW(Ergebnis)-MIN(ROW(Ergebnis))+1),ROWS($B$3:B87))))&CHAR(10),\"\")","v":""},null,{"$f":"IFERROR(INDEX(Aktivität,SMALL(IF(Ziel=$D$2,ROW(Aktivität)-MIN(ROW(Aktivität))+1),ROWS($B$3:B87)))&CHAR(10),\"\")","v":""},null,{"$f":"IFERROR(INDEX(Aktivität,SMALL(IF(Ziel=$F$2,ROW(Aktivität)-MIN(ROW(Aktivität))+1),ROWS($B$3:B87)))&CHAR(10),\"\")","v":""},null,{"$f":"IFERROR(INDEX(Aktivität,SMALL(IF(Ziel=$H$2,ROW(Aktivität)-MIN(ROW(Aktivität))+1),ROWS($B$3:B87)))&CHAR(10),\"\")","v":""}]
[null,{"$f":"IFERROR(INDEX(Aktivität,SMALL(IF(Ziel=$B$2,ROW(Aktivität)-MIN(ROW(Aktivität))+1),ROWS($B$3:B88)))&\" \"&CHAR(10)&(INDEX(Ergebnis,SMALL(IF(Ziel=$B$2,ROW(Ergebnis)-MIN(ROW(Ergebnis))+1),ROWS($B$3:B88))))&CHAR(10),\"\")","v":""},null,{"$f":"IFERROR(INDEX(Aktivität,SMALL(IF(Ziel=$D$2,ROW(Aktivität)-MIN(ROW(Aktivität))+1),ROWS($B$3:B88)))&CHAR(10),\"\")","v":""},null,{"$f":"IFERROR(INDEX(Aktivität,SMALL(IF(Ziel=$F$2,ROW(Aktivität)-MIN(ROW(Aktivität))+1),ROWS($B$3:B88)))&CHAR(10),\"\")","v":""},null,{"$f":"IFERROR(INDEX(Aktivität,SMALL(IF(Ziel=$H$2,ROW(Aktivität)-MIN(ROW(Aktivität))+1),ROWS($B$3:B88)))&CHAR(10),\"\")","v":""}]
[null,{"$f":"IFERROR(INDEX(Aktivität,SMALL(IF(Ziel=$B$2,ROW(Aktivität)-MIN(ROW(Aktivität))+1),ROWS($B$3:B89)))&\" \"&CHAR(10)&(INDEX(Ergebnis,SMALL(IF(Ziel=$B$2,ROW(Ergebnis)-MIN(ROW(Ergebnis))+1),ROWS($B$3:B89))))&CHAR(10),\"\")","v":""},null,{"$f":"IFERROR(INDEX(Aktivität,SMALL(IF(Ziel=$D$2,ROW(Aktivität)-MIN(ROW(Aktivität))+1),ROWS($B$3:B89)))&CHAR(10),\"\")","v":""},null,{"$f":"IFERROR(INDEX(Aktivität,SMALL(IF(Ziel=$F$2,ROW(Aktivität)-MIN(ROW(Aktivität))+1),ROWS($B$3:B89)))&CHAR(10),\"\")","v":""},null,{"$f":"IFERROR(INDEX(Aktivität,SMALL(IF(Ziel=$H$2,ROW(Aktivität)-MIN(ROW(Aktivität))+1),ROWS($B$3:B89)))&CHAR(10),\"\")","v":""}]
[null,{"$f":"IFERROR(INDEX(Aktivität,SMALL(IF(Ziel=$B$2,ROW(Aktivität)-MIN(ROW(Aktivität))+1),ROWS($B$3:B90)))&\" \"&CHAR(10)&(INDEX(Ergebnis,SMALL(IF(Ziel=$B$2,ROW(Ergebnis)-MIN(ROW(Ergebnis))+1),ROWS($B$3:B90))))&CHAR(10),\"\")","v":""},null,{"$f":"IFERROR(INDEX(Aktivität,SMALL(IF(Ziel=$D$2,ROW(Aktivität)-MIN(ROW(Aktivität))+1),ROWS($B$3:B90)))&CHAR(10),\"\")","v":""},null,{"$f":"IFERROR(INDEX(Aktivität,SMALL(IF(Ziel=$F$2,ROW(Aktivität)-MIN(ROW(Aktivität))+1),ROWS($B$3:B90)))&CHAR(10),\"\")","v":""},null,{"$f":"IFERROR(INDEX(Aktivität,SMALL(IF(Ziel=$H$2,ROW(Aktivität)-MIN(ROW(Aktivität))+1),ROWS($B$3:B90)))&CHAR(10),\"\")","v":""}]
[null,{"$f":"IFERROR(INDEX(Aktivität,SMALL(IF(Ziel=$B$2,ROW(Aktivität)-MIN(ROW(Aktivität))+1),ROWS($B$3:B91)))&\" \"&CHAR(10)&(INDEX(Ergebnis,SMALL(IF(Ziel=$B$2,ROW(Ergebnis)-MIN(ROW(Ergebnis))+1),ROWS($B$3:B91))))&CHAR(10),\"\")","v":""},null,{"$f":"IFERROR(INDEX(Aktivität,SMALL(IF(Ziel=$D$2,ROW(Aktivität)-MIN(ROW(Aktivität))+1),ROWS($B$3:B91)))&CHAR(10),\"\")","v":""},null,{"$f":"IFERROR(INDEX(Aktivität,SMALL(IF(Ziel=$F$2,ROW(Aktivität)-MIN(ROW(Aktivität))+1),ROWS($B$3:B91)))&CHAR(10),\"\")","v":""},null,{"$f":"IFERROR(INDEX(Aktivität,SMALL(IF(Ziel=$H$2,ROW(Aktivität)-MIN(ROW(Aktivität))+1),ROWS($B$3:B91)))&CHAR(10),\"\")","v":""}]
[null,{"$f":"IFERROR(INDEX(Aktivität,SMALL(IF(Ziel=$B$2,ROW(Aktivität)-MIN(ROW(Aktivität))+1),ROWS($B$3:B92)))&\" \"&CHAR(10)&(INDEX(Ergebnis,SMALL(IF(Ziel=$B$2,ROW(Ergebnis)-MIN(ROW(Ergebnis))+1),ROWS($B$3:B92))))&CHAR(10),\"\")","v":""},null,{"$f":"IFERROR(INDEX(Aktivität,SMALL(IF(Ziel=$D$2,ROW(Aktivität)-MIN(ROW(Aktivität))+1),ROWS($B$3:B92)))&CHAR(10),\"\")","v":""},null,{"$f":"IFERROR(INDEX(Aktivität,SMALL(IF(Ziel=$F$2,ROW(Aktivität)-MIN(ROW(Aktivität))+1),ROWS($B$3:B92)))&CHAR(10),\"\")","v":""},null,{"$f":"IFERROR(INDEX(Aktivität,SMALL(IF(Ziel=$H$2,ROW(Aktivität)-MIN(ROW(Aktivität))+1),ROWS($B$3:B92)))&CHAR(10),\"\")","v":""}]
[null,{"$f":"IFERROR(INDEX(Aktivität,SMALL(IF(Ziel=$B$2,ROW(Aktivität)-MIN(ROW(Aktivität))+1),ROWS($B$3:B93)))&\" \"&CHAR(10)&(INDEX(Ergebnis,SMALL(IF(Ziel=$B$2,ROW(Ergebnis)-MIN(ROW(Ergebnis))+1),ROWS($B$3:B93))))&CHAR(10),\"\")","v":""},null,{"$f":"IFERROR(INDEX(Aktivität,SMALL(IF(Ziel=$D$2,ROW(Aktivität)-MIN(ROW(Aktivität))+1),ROWS($B$3:B93)))&CHAR(10),\"\")","v":""},null,{"$f":"IFERROR(INDEX(Aktivität,SMALL(IF(Ziel=$F$2,ROW(Aktivität)-MIN(ROW(Aktivität))+1),ROWS($B$3:B93)))&CHAR(10),\"\")","v":""},null,{"$f":"IFERROR(INDEX(Aktivität,SMALL(IF(Ziel=$H$2,ROW(Aktivität)-MIN(ROW(Aktivität))+1),ROWS($B$3:B93)))&CHAR(10),\"\")","v":""}]
[null,{"$f":"IFERROR(INDEX(Aktivität,SMALL(IF(Ziel=$B$2,ROW(Aktivität)-MIN(ROW(Aktivität))+1),ROWS($B$3:B94)))&\" \"&CHAR(10)&(INDEX(Ergebnis,SMALL(IF(Ziel=$B$2,ROW(Ergebnis)-MIN(ROW(Ergebnis))+1),ROWS($B$3:B94))))&CHAR(10),\"\")","v":""},null,{"$f":"IFERROR(INDEX(Aktivität,SMALL(IF(Ziel=$D$2,ROW(Aktivität)-MIN(ROW(Aktivität))+1),ROWS($B$3:B94)))&CHAR(10),\"\")","v":""},null,{"$f":"IFERROR(INDEX(Aktivität,SMALL(IF(Ziel=$F$2,ROW(Aktivität)-MIN(ROW(Aktivität))+1),ROWS($B$3:B94)))&CHAR(10),\"\")","v":""},null,{"$f":"IFERROR(INDEX(Aktivität,SMALL(IF(Ziel=$H$2,ROW(Aktivität)-MIN(ROW(Aktivität))+1),ROWS($B$3:B94)))&CHAR(10),\"\")","v":""}]
[null,{"$f":"IFERROR(INDEX(Aktivität,SMALL(IF(Ziel=$B$2,ROW(Aktivität)-MIN(ROW(Aktivität))+1),ROWS($B$3:B95)))&\" \"&CHAR(10)&(INDEX(Ergebnis,SMALL(IF(Ziel=$B$2,ROW(Ergebnis)-MIN(ROW(Ergebnis))+1),ROWS($B$3:B95))))&CHAR(10),\"\")","v":""},null,{"$f":"IFERROR(INDEX(Aktivität,SMALL(IF(Ziel=$D$2,ROW(Aktivität)-MIN(ROW(Aktivität))+1),ROWS($B$3:B95)))&CHAR(10),\"\")","v":""},null,{"$f":"IFERROR(INDEX(Aktivität,SMALL(IF(Ziel=$F$2,ROW(Aktivität)-MIN(ROW(Aktivität))+1),ROWS($B$3:B95)))&CHAR(10),\"\")","v":""},null,{"$f":"IFERROR(INDEX(Aktivität,SMALL(IF(Ziel=$H$2,ROW(Aktivität)-MIN(ROW(Aktivität))+1),ROWS($B$3:B95)))&CHAR(10),\"\")","v":""}]
[null,{"$f":"IFERROR(INDEX(Aktivität,SMALL(IF(Ziel=$B$2,ROW(Aktivität)-MIN(ROW(Aktivität))+1),ROWS($B$3:B96)))&\" \"&CHAR(10)&(INDEX(Ergebnis,SMALL(IF(Ziel=$B$2,ROW(Ergebnis)-MIN(ROW(Ergebnis))+1),ROWS($B$3:B96))))&CHAR(10),\"\")","v":""},null,{"$f":"IFERROR(INDEX(Aktivität,SMALL(IF(Ziel=$D$2,ROW(Aktivität)-MIN(ROW(Aktivität))+1),ROWS($B$3:B96)))&CHAR(10),\"\")","v":""},null,{"$f":"IFERROR(INDEX(Aktivität,SMALL(IF(Ziel=$F$2,ROW(Aktivität)-MIN(ROW(Aktivität))+1),ROWS($B$3:B96)))&CHAR(10),\"\")","v":""},null,{"$f":"IFERROR(INDEX(Aktivität,SMALL(IF(Ziel=$H$2,ROW(Aktivität)-MIN(ROW(Aktivität))+1),ROWS($B$3:B96)))&CHAR(10),\"\")","v":""}]
[null,{"$f":"IFERROR(INDEX(Aktivität,SMALL(IF(Ziel=$B$2,ROW(Aktivität)-MIN(ROW(Aktivität))+1),ROWS($B$3:B97)))&\" \"&CHAR(10)&(INDEX(Ergebnis,SMALL(IF(Ziel=$B$2,ROW(Ergebnis)-MIN(ROW(Ergebnis))+1),ROWS($B$3:B97))))&CHAR(10),\"\")","v":""},null,{"$f":"IFERROR(INDEX(Aktivität,SMALL(IF(Ziel=$D$2,ROW(Aktivität)-MIN(ROW(Aktivität))+1),ROWS($B$3:B97)))&CHAR(10),\"\")","v":""},null,{"$f":"IFERROR(INDEX(Aktivität,SMALL(IF(Ziel=$F$2,ROW(Aktivität)-MIN(ROW(Aktivität))+1),ROWS($B$3:B97)))&CHAR(10),\"\")","v":""},null,{"$f":"IFERROR(INDEX(Aktivität,SMALL(IF(Ziel=$H$2,ROW(Aktivität)-MIN(ROW(Aktivität))+1),ROWS($B$3:B97)))&CHAR(10),\"\")","v":""}]
[null,{"$f":"IFERROR(INDEX(Aktivität,SMALL(IF(Ziel=$B$2,ROW(Aktivität)-MIN(ROW(Aktivität))+1),ROWS($B$3:B98)))&\" \"&CHAR(10)&(INDEX(Ergebnis,SMALL(IF(Ziel=$B$2,ROW(Ergebnis)-MIN(ROW(Ergebnis))+1),ROWS($B$3:B98))))&CHAR(10),\"\")","v":""},null,{"$f":"IFERROR(INDEX(Aktivität,SMALL(IF(Ziel=$D$2,ROW(Aktivität)-MIN(ROW(Aktivität))+1),ROWS($B$3:B98)))&CHAR(10),\"\")","v":""},null,{"$f":"IFERROR(INDEX(Aktivität,SMALL(IF(Ziel=$F$2,ROW(Aktivität)-MIN(ROW(Aktivität))+1),ROWS($B$3:B98)))&CHAR(10),\"\")","v":""},null,{"$f":"IFERROR(INDEX(Aktivität,SMALL(IF(Ziel=$H$2,ROW(Aktivität)-MIN(ROW(Aktivität))+1),ROWS($B$3:B98)))&CHAR(10),\"\")","v":""}]
[null,{"$f":"IFERROR(INDEX(Aktivität,SMALL(IF(Ziel=$B$2,ROW(Aktivität)-MIN(ROW(Aktivität))+1),ROWS($B$3:B99)))&\" \"&CHAR(10)&(INDEX(Ergebnis,SMALL(IF(Ziel=$B$2,ROW(Ergebnis)-MIN(ROW(Ergebnis))+1),ROWS($B$3:B99))))&CHAR(10),\"\")","v":""},null,{"$f":"IFERROR(INDEX(Aktivität,SMALL(IF(Ziel=$D$2,ROW(Aktivität)-MIN(ROW(Aktivität))+1),ROWS($B$3:B99)))&CHAR(10),\"\")","v":""},null,{"$f":"IFERROR(INDEX(Aktivität,SMALL(IF(Ziel=$F$2,ROW(Aktivität)-MIN(ROW(Aktivität))+1),ROWS($B$3:B99)))&CHAR(10),\"\")","v":""},null,{"$f":"IFERROR(INDEX(Aktivität,SMALL(IF(Ziel=$H$2,ROW(Aktivität)-MIN(ROW(Aktivität))+1),ROWS($B$3:B99)))&CHAR(10),\"\")","v":""}]
[null,{"$f":"IFERROR(INDEX(Aktivität,SMALL(IF(Ziel=$B$2,ROW(Aktivität)-MIN(ROW(Aktivität))+1),ROWS($B$3:B100)))&\" \"&CHAR(10)&(INDEX(Ergebnis,SMALL(IF(Ziel=$B$2,ROW(Ergebnis)-MIN(ROW(Ergebnis))+1),ROWS($B$3:B100))))&CHAR(10),\"\")","v":""},null,{"$f":"IFERROR(INDEX(Aktivität,SMALL(IF(Ziel=$D$2,ROW(Aktivität)-MIN(ROW(Aktivität))+1),ROWS($B$3:B100)))&CHAR(10),\"\")","v":""},null,{"$f":"IFERROR(INDEX(Aktivität,SMALL(IF(Ziel=$F$2,ROW(Aktivität)-MIN(ROW(Aktivität))+1),ROWS($B$3:B100)))&CHAR(10),\"\")","v":""},null,{"$f":"IFERROR(INDEX(Aktivität,SMALL(IF(Ziel=$H$2,ROW(Aktivität)-MIN(ROW(Aktivität))+1),ROWS($B$3:B100)))&CHAR(10),\"\")","v":""}]

{"sheet":"Info","index":2,"n_rows":6,"n_cols":1,"rows_kept":6}
["Informationen zu dieser Arbeitsmappe"]
["Leitfaden für die Sprachausgabe"]
["Diese Arbeitsmappe enthält 3 Arbeitsblätter. \n\nLeitplandaten\nAgiler Leitplan\nInfo\n\nDie Anweisungen für jedes Arbeitsblatt befinden sich in Spalte A ab Zelle A1 der einzelnen Arbeitsblätter. Sie sind in verborgenem Text geschrieben. Jeder Schritt führt Sie durch die Informationen in der betreffenden Zeile. Jeder nachfolgende Schritt fährt in den Zellen A2, A3 usw. fort, sofern nicht ausdrücklich anders angegeben. Beispielsweise kann der Anweisungstext etwa für den nächsten Schritt \"Mit Zelle 6 fortfahren\" besagen. \n\nVerborgener Text wird nicht gedruckt.\n\nUm diese Anweisungen von einem der Arbeitsblätter zu entfernen, löschen Sie einfach Spalte A.\n"]
["Informationen zu dieser Arbeitsmappe"]
["Geben Sie Meilensteininformationen auf dem Arbeitsblatt \"Leitplandaten\" ein.  Achten Sie darauf, nach Priorität, gefolgt von Meilenstein, zu sortieren, um die Ansicht \"Abgeschlossen\", \"Aktuell\", \"Kurzfristig\" und \"Zukunft\" in absteigender Priorität darzustellen – mit den Elementen mit der höchsten Priorität zuoberst. Der Leitplan auf dem Arbeitsblatt \"Agiler Leitplan\" wird automatisch aktualisiert.\n"]
["Dies ist die letzte Anweisung auf diesem Arbeitsblatt."]